Workbook

Sheet ORÇAMENTO
B6: ANEXO I - PLANILHA ORÇAMENTÁRIA_NÃO DESONERADA
B8: SERVIÇO: REALIZAÇÃO DE LEVANTAMENTOS TOPOGRÁFICOS PARA APOIO À FISCALIZAÇÃO CODEVASF.
B10: LOCAL: DIVERSOS MUNICÍPIOS INSERIDOS DE ATUAÇÃO DA 15ª SUPERINTENDÊNCIA REGIONAL DA CODEVASF.
B13: Item | C13: Descrição dos Serviços | D13: Unidade | E13: Quant. | F13: Valor Unitário | G13: Valor Total
B14: 1 | C14: Administração local | D14: mês | E14: 12 | F14: ='COMPOSIÇÕES UNITARIAS'!H18 -> 20407.93 | G14: =E14*F14 -> 244895.16
B15: 2 | C15: Equipe para cadastro de obras (As Built) | D15: mês | E15: 12 | F15: ='COMPOSIÇÕES UNITARIAS'!H34 -> 2405.68 | G15: 28868.16 | L15: =E16/1700 -> 1058.823529
B16: 3 | C16: Levantamento de volumes de cortes e aterros, extraídos de levantamento planialtimétrico (por área), incluindo apresentação de pranchas com as seções transversais de corte e aterro, bem como planilha com a memória de cálculo dos volumes. | D16: m² | E16: 1800000 | F16: ='Levantamento Planialtimetrico'!H37 -> 0.39 | G16: 702000 | I16: =E16/2 -> 900000 | J16: =3600 -> 3600 | L16: =E16*10% -> 180000
B17: 4 | C17: Levantamento topográfico planialtimétrico cadastral, incluso eixos, seções transversais, longitudinais, calculo de volumes de terraplenagem e desenhos | D17: m² | E17: 1800000 | F17: =Poligonal!H43 -> 0.23 | G17: 414000
B18: TOTAL GERAL R$ | G18: =SUM(G14:G17) -> 1389763.32 | J18: =J16*#REF! -> 
B19: Base para orçamento: Tabela de Engenharia Consultiva DNIT JUL/2023 | J19: =G18/12 -> 115813.61
B23: Levantamento topografico realizado por equipe tecnica, conforme especificações descritas nos termos de referencia.

Sheet BDI
C2: REALIZAÇÃO DE LEVANTAMENTOS TOPOGRÁFICOS PARA APOIO À FISCALIZAÇÃO CODEVASF EM OBRAS DE DIVERSOS MUNICIPIOS DE PERNAMBUCO, NA ÁREA DE ATUAÇÃO DA 15ª SUPERINTENDÊNCIA REGIONAL DA CODEVASF.
C4: DETALHAMENTO DO BDI NÃO DESONERADO
C6: Item | D6: Descrição dos serviços | E6: Preço de Venda (%) | F6: Custo Direto (%)
C8: 1 | D8: Administração Central (A) | F8: 0.055
C10: 2 | D10: Impostos e Taxas (I) | E10: =SUM(E11:E14) -> 0.0665
C11: 2.1 | D11: ISS | E11: 0.03
C12: 2.2 | D12: PIS | E12: 0.0065
C13: 2.3 | D13: Cofins | E13: 0.03
C14: 2.4 | D14: CPRB | E14: 0
C15: 3 | D15: Risco, seguro e garantia (R) | F15: =SUM(F16:F17) -> 0.014
C16: 3.1 | D16: Risco | F16: 0.01
C17: 3.2 | D17: Seguro + Garantia | F17: 0.004
C19: 4 | D19: Despesas Financeiras (DF) | F19: 0.0085
C21: 5 | D21: Lucro (L) | F21: 0.065
D23: BDI* (%) | F23: =ROUND(((((1+F8+F15)*(1+F19)*(1+F21))/(1-E10))-1),3) -> 0.23
D27: BDI (%) - ADOTADO | F27: =F23 -> 0.23
C29: AC = | D29: taxa de rateio da Administração Central | F29: =F8 -> 0.055
C30: I = | D30: taxa de tributos | F30: =E10 -> 0.0665
C31: R = | D31: taxa de risco, seguro e garantia | F31: =F15 -> 0.014
C32: DF = | D32: taxa das despesas financeiras | F32: =F19 -> 0.0085
C33: L = | D33: taxa de lucro | F33: =F21 -> 0.065

Sheet COMPOSIÇÕES UNITARIAS
B6: OBRA: APOIO A FISCALIZAÇÃO DE OBRAS DA 15ª SUPERINTENDÊNCIA REGIONAL | G6: 2023-09-01
B7: SERVIÇO : Administração Local | G7: UNIDADE: | H7: unid.
B8: DISCRIMINAÇÃO | C8: FONTE | D8: UNID | E8: QUANT. | F8: CUSTO UNITÁRIO | G8: TOTAL
A9: B8951 | B9: =VLOOKUP(A9,'TC-DNIT'!B:F,2,0) -> Imóvel Comercial (2,60% do CMCC - SINAPI) | C9: DNIT - B8951 | D9: =VLOOKUP(A9,'TC-DNIT'!B:F,4,0) -> l | E9: =6*10*12 -> 720 | F9: =VLOOKUP(A9,'TC-DNIT'!B:F,5,0) -> 47.3 | G9: =TRUNC(E9*F9,2) -> 34056
A10: B8953 | B10: =VLOOKUP(A10,'TC-DNIT'!B:F,2,0) -> Mobiliário Escritório | C10: DNIT - B8953 | D10: =VLOOKUP(A10,'TC-DNIT'!B:F,4,0) -> ocupante x mês | E10: =10*12 -> 120 | F10: =VLOOKUP(A10,'TC-DNIT'!B:F,5,0) -> 502.59 | G10: 60310.8
A11: B8959 | B11: =VLOOKUP(A11,'TC-DNIT'!B:F,2,0) -> Custos Diversos Escritório | C11: DNIT - B8959 | D11: =VLOOKUP(A11,'TC-DNIT'!B:F,4,0) -> ocupante x mês | E11: =10*12 -> 120 | F11: =VLOOKUP(A11,'TC-DNIT'!B:F,5,0) -> 132.92 | G11: 15950.4
A12: B8958 | B12: =VLOOKUP(A12,'TC-DNIT'!B:F,2,0) -> Topografia | C12: DNIT - B8958 | D12: =VLOOKUP(A12,'TC-DNIT'!B:F,4,0) -> mês | E12: 12 | F12: =VLOOKUP(A12,'TC-DNIT'!B:F,5,0) -> 3163.12 | G12: 37957.44
A13: B8957 | B13: =VLOOKUP(A13,'TC-DNIT'!B:F,2,0) -> Laboratório de solos | C13: DNIT - B8957 | D13: =VLOOKUP(A13,'TC-DNIT'!B:F,4,0) -> mês | E13: 12 | F13: =VLOOKUP(A13,'TC-DNIT'!B:F,5,0) -> 4235.59 | G13: 50827.08
B14: SUB-TOTAL | H14: =SUM(G9:H13) -> 199101.72
B15: TOTAL - R$ | H15: =H14 -> 199101.72
B16: BDI | D16: =BDI!F27 -> 0.23 | H16: =H15*D16 -> 45793.4
B17: TOTAL DO SERVIÇO PARA 12 MESES - R$ | H17: =H16+H15 -> 244895.12
B18: TOTAL DO SERVIÇO MENSAL - R$ | H18: =H17/12 -> 20407.93
B24: CODEVASF | D24: 01.04-A | E24: COMPOSIÇÃO DE PREÇO UNITÁRIO
B25: =B6 -> OBRA: APOIO A FISCALIZAÇÃO DE OBRAS DA 15ª SUPERINTENDÊNCIA REGIONAL | G25: 2023-09-01
B26: SERVIÇO:Equipe para cadastro de obras (As Built) | G26: UNIDADE: | H26: mês
B27: DISCRIMINAÇÃO | C27: FONTE | D27: UNID | E27: QUANT. | F27: CUSTO UNITÁRIO | G27: TOTAL
A28: P8026 | B28: =VLOOKUP(A28,DNIT!A:Y,2,0) -> Auxiliar administrativo | C28: DNIT - P8026 | D28: =VLOOKUP(A28,DNIT!A:Y,3,0) -> mês | E28: 1 | F28: =VLOOKUP(A28,DNIT!A:Y,25,0) -> 4308.49 | G28: =TRUNC(E28*F28) -> 4308 | K28: 80
A29: P9848 | B29: =VLOOKUP(A29,SICRO!A:G,2,0) -> Desenhista | C29: DNIT - P9848 | D29: mês | E29: 3 | F29: =VLOOKUP(A29,SICRO!A:G,6,0) -> 6387.4486 | G29: =TRUNC(E29*F29) -> 19162
B30: SUB-TOTAL | H30: =SUM(G28:H29) -> 23470
B31: TOTAL - R$ | H31: =H30 -> 23470
B32: BDI | D32: =BDI!F27 -> 0.23 | H32: =H31*D32 -> 5398.1
B33: TOTAL DO SERVIÇO PARA 12 MESES - R$ | H33: =H32+H31 -> 28868.1
B34: TOTAL DO SERVIÇO MENSAL - R$ | H34: =H33/12 -> 2405.68

Sheet Levantamento Planialtimetrico
B3: SERVIÇO: Levantamento planialtimétrico de terreno
B4: COMPOSIÇÃO DE PREÇOS - UNIDADE: M²
G5: Data: | H5: Setembro/2023
B6: MÃO DE OBRA.
B7: 1 | C7: CODIGO | D7: DESCRIÇÃO DOS INSUMOS | E7: UNID. | F7: QUANT. | G7: CUSTOS UNITÁRIO (R$). | H7: CUSTO TOTAL (R$). | L7: 4 aguadas/dia | M7: 1aguada = 3.000 m² | O7: (40m x 50m)
A8: P8061 | B8: 1.1 | C8: P9812 | D8: =VLOOKUP(C8,SICRO!A:G,2,0) -> Engenheiro | E8: =VLOOKUP(D8,SICRO!B:H,2,0) -> mês | F8: =0.15 -> 0.15 | G8: =VLOOKUP(C8,SICRO!A:G,6,0) -> 23408.33 | H8: =ROUND(F8*G8,2) -> 3511.25 | M8: faixa de acesso de 4 x 20m
A9: P9949 | B9: 1.2 | C9: P9949 | D9: =VLOOKUP(C9,SICRO!A:G,2,0) -> Topógrafo | E9: =VLOOKUP(C9,SICRO!A:G,3,0) -> mês | F9: 1 | G9: =VLOOKUP(C9,SICRO!A:G,6,0) -> 8060.98 | H9: =ROUND(F9*G9,2) -> 8060.98 | M9: total/aguada | N9: =2000+(4*20) -> 2080
A10: P9950 | B10: 1.3 | C10: P9950 | D10: =VLOOKUP(C10,SICRO!A:G,2,0) -> Auxiliar de topografia | E10: =VLOOKUP(C10,SICRO!A:G,3,0) -> mês | F10: 2 | G10: =VLOOKUP(C10,SICRO!A:G,6,0) -> 5402.95 | H10: =ROUND(F10*G10,2) -> 10805.9 | K10: =SUM(F8:F10) -> 3.15
K11: 12
B12: Total do Item 1: | H12: =SUM(H8:H10) -> 22378.13 | K12: =K10*K11 -> 37.8
B13: LOCAÇÃO DE VEICULOS.
B14: 2 | C14: CODIGO | D14: DESCRIÇÃO DOS INSUMOS | E14: UNID. | F14: QUANT. | G14: CUSTOS UNITÁRIO (R$). | H14: CUSTO TOTAL (R$).
B15: 2.1 | C15: E8891 | D15: =VLOOKUP(C15,'TC-DNIT'!B:F,2,0) -> Veículo leve picape 4x4 - 147 kW (sem motorista) | E15: mês | F15: 1 | G15: =VEÍCULO!$D$6 -> 8625.32 | H15: =ROUND(F15*G15,2) -> 8625.32 | L15: 1 | M15: 176
B16: Total do Item 2: | H16: =SUM(H15) -> 8625.32 | L16: x | M16: 8.8 | N16: =M15/20 -> 8.8
B17: EQUIPAMENTOS TOPOGRAFICOS - computados na Adm Local | M17: =M16/M15 -> 0.05
B18: 3 | D18: DESCRIÇÃO DOS INSUMOS | E18: UNID. | F18: QUANT. | G18: CUSTOS UNITÁRIO (R$). | H18: CUSTO TOTAL (R$).
B21: Total do Item 3 | H21: =SUM(H19:H20) -> 0 | L21: x | M21: 6
B22: PREÇO DA EQUIPE 1+2+3/AGUADA | H22: =SUM(H12,H16,H21) -> 31003.45 | L22: =M21/M20 -> 
B24: DESPESAS 01 EQUIPE - DIARIAS POR AGUADA | M24: HOSPEDAGEM | N24: ALMOÇO | O24: JANTAR
B25: 4 | D25: DESCRIÇÃO | E25: UNID. | F25: QUANT. | G25: CUSTOS UNITÁRIO (R$). | H25: CUSTO TOTAL (R$). | M25: 75 | N25: 15 | O25: 15
B26: 4.1 | C26: Portaria nº5047/2020 - Dnit | D26: Diárias | E26: diaria | F26: =3*5 -> 15 | G26: 212.4 | H26: =ROUND(F26*G26,2) -> 3186 | J26: =K26/8 -> 0.0188 | K26: =F8 -> 0.15 | L26: Coordenador/campo
B27: Total do item 4 | H27: =SUM(H26:H26) -> 3186 | J27: =2*22 -> 44 | K27: =F10 -> 2 | L27: Aux. de topografia
B29: PRECO UNITARIO DE 01 (UMA) EQUIPE POR MÊS (22 DIAS) (1+2+3+4) | H29: =H27+H22 -> 34189.45 | K29: 4 | L29: aguada/dia | M29: 1 aguada= | N29: =N9 -> 2080 | O29: m²
D31: BDI | G31: =BDI!$F$27 -> 0.23 | H31: =ROUND(H29*G31,3) -> 7863.57
B33: PRECO UNITARIO TOTAL DE 01 (UMA) EQUIPE POR DIA (1+2+3+4) | H33: =(H29+H31)/22 -> 1911.5
B35: PRODUTIVIDADE BARRAGEM/AGUADA = 4.900,00 M² | G35: =70*70 -> 4900 | K35: diaria hosp=
B37: PREÇO DO LEVANTAMENTO PLANIALTIMETRICO POR M² | H37: =ROUND(H33/G35,3) -> 0.39 | M37: 210 AGUADAS = | N37: =N29*210 -> 436800 | O37: =O29 -> m²
L39: =H37*6000 -> 2340
I40: =H38*1750 -> 0 | L40: =I40*4 -> 0
G42: =3600*8 -> 28800

Sheet Poligonal
K7: =J16*176 -> 0
B11: LEVANTAMENTO PLANIALTIMÉTRICO CADASTRAL
B12: SERVIÇO: Levantamento topográfico planialtimétrico cadastral, incluso eixos, seções transversais, longitudinais, calculo de volumes de terraplenagem e desenhos - UNIDADE: M²
G13: Data:
B14: MÃO DE OBRA.
B15: 1 | C15: CODIGO | D15: DESCRIÇÃO DOS INSUMOS | E15: UNID. | F15: QUANT. | G15: CUSTOS UNITÁRIO (R$). | H15: CUSTO TOTAL (R$).
B16: 1.1 | C16: P9812 | D16: =VLOOKUP(C16,SICRO!A:G,2,0) -> Engenheiro | E16: =VLOOKUP(C16,SICRO!A:G,3,0) -> mês | F16: 0.15 | G16: =VLOOKUP(C16,SICRO!A:G,4,0) -> 12819.95 | H16: =F16*G16 -> 1922.99
B17: 1.2 | C17: P9949 | D17: =VLOOKUP(C17,SICRO!A:G,2,0) -> Topógrafo | E17: =VLOOKUP(C17,SICRO!A:G,3,0) -> mês | F17: 1 | G17: =VLOOKUP(C17,SICRO!A:G,4,0) -> 4037 | H17: =F17*G17 -> 4037
B18: 1.3 | C18: P9950 | D18: =VLOOKUP(C18,SICRO!A:G,2,0) -> Auxiliar de topografia | E18: =VLOOKUP(C18,SICRO!A:G,3,0) -> mês | F18: 2 | G18: =VLOOKUP(C18,SICRO!A:G,4,0) -> 2378.34 | H18: =F18*G18 -> 4756.68
B19: 1.4 | C19: P8038 | D19: =VLOOKUP(C19,DNIT!A:Y,2,0) -> Chefe de escritório | E19: =VLOOKUP(D19,DNIT!B:Z,2,0) -> mês | F19: 0.2 | G19: =VLOOKUP(C19,DNIT!A:Y,25,0) -> 7072.59 | H19: =F19*G19 -> 1414.52
B20: 1.5 | C20: P9848 | D20: =VLOOKUP(C20,SICRO!A:G,2,0) -> Desenhista | E20: =VLOOKUP(C20,SICRO!A:G,3,0) -> mês | F20: 0.25 | G20: =VLOOKUP(C20,SICRO!A:G,4,0) -> 3000.84 | H20: =F20*G20 -> 750.21
H21: =SUM(H16:H20) -> 12881.4
B22: Total do Item 1: | H22: =SUM(H16:H20) -> 12881.4
B23: LOCAÇÃO DE VEICULOS.
B24: 2 | C24: CODIGO | D24: DESCRIÇÃO DOS INSUMOS | E24: UNID. | F24: QUANT. | G24: CUSTOS UNITÁRIO (R$). | H24: CUSTO TOTAL (R$).
B25: 2.2 | C25: E8891 | D25: =VLOOKUP(C25,'TC-DNIT'!B:F,2,0) -> Veículo leve picape 4x4 - 147 kW (sem motorista) | E25: mês | F25: 1 | G25: =VEÍCULO!$D$6 -> 8625.32 | H25: =F25*G25 -> 8625.32
B26: Total do Item 2: | H26: =SUM(H25) -> 8625.32
B27: EQUIPAMENTOS TOPOGRAFICOS - computados na Adm Local
B28: 3 | C28: CODIGO | D28: DESCRIÇÃO DOS INSUMOS | E28: UNID. | F28: QUANT. | G28: CUSTOS UNITÁRIO (R$). | H28: CUSTO TOTAL (R$).
B31: Total do Item 3 | H31: =SUM(H29:H30) -> 0
B32: DESPESAS 01 EQUIPE - DIARIAS E ALIMENTAÇÃO
B33: 4 | D33: DESCRIÇÃO | E33: UNID. | F33: QUANT. | G33: CUSTOS UNITÁRIO (R$). | H33: CUSTO TOTAL (R$).
B34: 4.1 | C34: CODEVASF | D34: Hospedagem + Alimentação | E34: diária | F34: =3*5 -> 15 | G34: 218.1 | H34: =F34*G34 -> 3271.5
B35: Total do item 4 | H35: =SUM(H34:H34) -> 3271.5 | K35: 352 | L35: 44
F36: Total Itens 1, 2, 3 e 4 | H36: =H35+H31+H26+H22 -> 24778.22 | K36: 26.4 | L36: =26.4/8 -> 3.3
D37: BDI | G37: =BDI!F23 -> 0.23 | H37: =H36*G37 -> 5698.99 | K37: 176 | L37: 22
B38: PRECO MENSAL DA EQUIPE (1 mês = 22 dias) | H38: =H36+H37 -> 30477.21
B39: PRECO UNITARIO DE 01 (UMA) EQUIPE POR DIA | H39: =H38/22 -> 1385.33
B41: PRODUTIVIDADE DA EQUIPE | G41: 6000 | H41: m²/dia
B43: PREÇO DO LEVANTAMENTO PLANIALTIMETRICO POR M² | H43: =H39/G41 -> 0.23 | K43: sinapi 78472 = R$ 0,32/m2
I46: =H44*1750 -> 0

Sheet VEÍCULO
A1: CUSTO MENSAL DE E8891 VEÍCULO LEVE picape 4x4 - 147 kW (sem motorista)
B3: h | C3: R$/h | D3: Total
A4: Horas Operativas | B4: 66 | C4: ='TC-DNIT'!E7 -> 80.19 | D4: =B4*C4 -> 5292.54
A5: Horas Improdutivas | B5: 116.49 | C5: ='TC-DNIT'!F7 -> 28.61 | D5: =B5*C5 -> 3332.78
A6: Horas globais/mês trabalháveis (*) | B6: =B4+B5 -> 182.49 | D6: =ROUND(D4+D5,2) -> 8625.32
A9: (*) Fonte: Manual de Custos de Infraestrutura de Transportes - Volume 01, pág. 53

Sheet PO-I
B6: ANEXO I - PLANILHA ORÇAMENTÁRIA
B8: SERVIÇO: REALIZAÇÃO DE LEVANTAMENTOS TOPOGRÁFICOS PARA APOIO À FISCALIZAÇÃO CODEVASF.
B10: LOCAL: DIVERSOS MUNICÍPIOS DE ATUAÇÃO DA 3ª SUPERINTENDÊNCIA REGIONAL NO ESTADO DE PERNAMBUCO
B13: Item | C13: Descrição dos Serviços | D13: Unidade | E13: Quant. | F13: Valor Unitário | G13: Valor Total
B14: 2 | C14: Administração local | D14: un | E14: =ORÇAMENTO!E14 -> 12
B15: 3 | C15: Equipe para cadastro de obras (As Built) | D15: mês | E15: =ORÇAMENTO!E15 -> 12
B16: 4 | C16: Levantamento de volumes de cortes e aterros, extraídos de levantamento planialtimétrico (por área), incluindo apresentação de pranchas com as seções transversais de corte e aterro, bem como planilha com a memória de cálculo dos volumes. | D16: m² | E16: =ORÇAMENTO!E16 -> 1800000
B17: 5 | C17: Levantamento planialtimétrico de seções transversais (emissarios e redes coletoras), por Equipe de topografia incluindo apresentação de pranchas. | D17: m | E17: =ORÇAMENTO!E17 -> 1800000
B18: TOTAL GERAL R$ | I18: =G14/G18 -> 
B19: =ORÇAMENTO!B19 -> Base para orçamento: Tabela de Engenharia Consultiva DNIT JUL/2023
B23: Levantamento topografico realizado por equipe tecnica, conforme especificações descritas nos termos de referencia.

Sheet Encargos Dnit

Sheet Enc Sociais
A1: DETALHAMENTO DOS ENCARGOS SOCIAIS
A3: DISCRIMINAÇÃO | F3: SEM DESONERAÇÃO | H3: COM DESONERAÇÃO
F4: HORISTA | G4: MESALISTA | H4: HORISTA | I4: MESALISTA
A5: A | B5: GRUPO A
A6: A1 | B6: INSS | F6: 0.2 | G6: 0.2 | H6: 0,00% | I6: 0,00%
A7: A2 | B7: Sesi | F7: 0.015 | G7: 0.015 | H7: 0.015 | I7: 0.015
A8: A3 | B8: Senai | F8: 0.01 | G8: 0.01 | H8: 0.01 | I8: 0.01
A9: A4 | B9: Incra | F9: 0.002 | G9: 0.002 | H9: 0.002 | I9: 0.002
A10: A5 | B10: Sebrae | F10: 0.006 | G10: 0.006 | H10: 0.006 | I10: 0.006
A11: A6 | B11: Salário Educação | F11: 0.025 | G11: 0.025 | H11: 0.025 | I11: 0.025
A12: A7 | B12: Seguro Contra Acidente de Trabalho | F12: 0.03 | G12: 0.03 | H12: 0.03 | I12: 0.03
A13: A8 | B13: FGTS | F13: 0.08 | G13: 0.08 | H13: 0.08 | I13: 0.08
A14: A9 | B14: Seconci | F14: 0,00% | G14: 0,00% | H14: 0,00% | I14: 0,00%
A15: SUBTOTAL DE "A" | F15: =SUM(F6:F14) -> 0.368 | G15: =SUM(G6:G14) -> 0.368 | H15: =ROUND(SUM(H6:H14),4) -> 0.168 | I15: =SUM(I6:I14) -> 0.168
A17: B | B17: GRUPO B
A18: B1 | B18: Repouso Semanal Remunerado | F18: 0.1806 | G18: NÃO INCIDE | H18: 0.1806 | I18: NÃO INCIDE
A19: B2 | B19: Feriados | F19: 0.0433 | G19: NÃO INCIDE | H19: 0.0433 | I19: NÃO INCIDE
A20: B3 | B20: Auxílio - Enfermidade | F20: 0.0093 | G20: 0.0071 | H20: 0.0093 | I20: 0.0071
A21: B4 | B21: 13º Salário | F21: 0.1086 | G21: 0.0833 | H21: 0.1086 | I21: 0.0833
A22: B5 | B22: Licença Paternidade | F22: 0.0007 | G22: 0.0006 | H22: 0.0007 | I22: 0.0006
A23: B6 | B23: Faltas Justificadas | F23: 0.0072 | G23: 0.0056 | H23: 0.0072 | I23: 0.0056
A24: B7 | B24: Dias de Chuvas | F24: 0.0218 | G24: NÃO INCIDE | H24: 0.0218 | I24: NÃO INCIDE
A25: B8 | B25: Auxílio Acidente de Trabalho | F25: 0.0011 | G25: 0.0009 | H25: 0.0011 | I25: 0.0009
A26: B9 | B26: Férias Gozadas | F26: 0.0769 | G26: 0.059 | H26: 0.0769 | I26: 0.059
A27: B10 | B27: Salário Maternidade | F27: 0.0003 | G27: 0.0002 | H27: 0.0003 | I27: 0.0002
A28: SUBTOTAL DE "B" | F28: =ROUND(SUM(F18:F27),4) -> 0.4498 | G28: =SUM(G19:G27) -> 0.1567 | H28: =ROUND(SUM(H18:H27),4) -> 0.4498 | I28: =SUM(I19:I27) -> 0.1567
A30: C | B30: GRUPO C
A31: C1 | B31: Aviso Prévio Indenizado | F31: 0.0483 | G31: 0.0371 | H31: 0.0483 | I31: 0.0371
A32: C2 | B32: Aviso Prévio Trabalhado | F32: 0.0011 | G32: 0.0009 | H32: 0.0011 | I32: 0.0009
A33: C3 | B33: Férias Indenizadas | F33: 0.0596 | G33: 0.0458 | H33: 0.0596 | I33: 0.0458
A34: C4 | B34: Depósito Recisão Sem Justa Causa | F34: 0.0496 | G34: 0.0381 | H34: 0.0496 | I34: 0.0381
A35: C5 | B35: Indenização Adicional | F35: 0.0041 | G35: 0.0031 | H35: 0.0041 | I35: 0.0031
A36: SUBTOTAL DE "C" | F36: =ROUND(SUM(F31:F35),4) -> 0.1627 | G36: =SUM(G31:G35) -> 0.125 | H36: =ROUND(SUM(H31:H35),4) -> 0.1627 | I36: =SUM(I31:I35) -> 0.125
A38: D | B38: GRUPO D
A39: D1 | B39: Reincidência de Grupo A sobre Grupo B | F39: 0.1655 | G39: 0.0577 | H39: 0.0756 | I39: 0.0263
A40: D2 | B40: Reincidência de Grupo A sobre Aviso Prévio Trabalhado e Reincidência do FGTS sobre Aviso Prévio Indenizado | F40: 0.0043 | G40: 0.0033 | H40: 0.004 | I40: 0.0031
A41: SUBTOTAL DE "D" | F41: =ROUND(SUM(F39:F40),4) -> 0.1698 | G41: =SUM(G39:G40) -> 0.061 | H41: =ROUND(SUM(H39:H40),4) -> 0.0796 | I41: =SUM(I39:I40) -> 0.0294
A43: TOTAIS DE ENCARGOS SOCIAIS | F43: =F15+F28+F36+F41 -> 1.1503 | G43: =G15+G28+G36+G41 -> 0.7107 | H43: =H15+H28+H36+H41 -> 0.8601 | I43: =I15+I28+I36+I41 -> 0.4791

Sheet SICRO
A1: CGCIT | B1: SISTEMA DE CUSTOS REFERENCIAIS DE OBRAS - SICRO | G1: DNIT
A3: Pernambuco - Julho/2023
A4: Sem desoneração
A5: Código | B5: Descrição | C5: Unidade | D5: Salário (R$) | E5: Encargos Totais | F5: Custo (R$) | G5: Periculosidade/ Insalubridade
A6: P9801 | B6: Ajudante | C6: h | D6: 7.0256 | E6: 2.049525 | F6: 21.4247 | G6: 0
A7: P9802 | B7: Ajudante especializado | C7: h | D7: 8.3916 | E7: 1.993685 | F7: 25.1218 | G7: 0
A8: P9803 | B8: Almoxarife | C8: mês | D8: 2637.8 | E8: 1.211854 | F8: 5834.4284 | G8: 0
A9: P9804 | B9: Apontador | C9: mês | D9: 1953.6 | E9: 1.3733 | F9: 4636.4788 | G9: 0
A10: P9805 | B10: Armador | C10: h | D10: 10.8106 | E10: 1.719987 | F10: 29.4046 | G10: 0
A11: P9806 | B11: Auxiliar administrativo | C11: mês | D11: 1953.6 | E11: 1.369024 | F11: 4628.1252 | G11: 0
A12: P9807 | B12: Bombeiro hidráulico | C12: h | D12: 10.8106 | E12: 1.799569 | F12: 30.265 | G12: 0
A13: P9808 | B13: Carpinteiro | C13: h | D13: 8.9034 | E13: 1.853355 | F13: 25.4045 | G13: 0
A14: P9809 | B14: Encarregado administrativo | C14: mês | D14: 3868.0365 | E14: 0.971681 | F14: 7626.534 | G14: 0
A15: P9810 | B15: Eletricista | C15: h | D15: 10.4335 | E15: 1.796212 | F15: 29.1742 | G15: 0
A16: P9811 | B16: Encarregado especializado | C16: mês | D16: 3589.4784 | E16: 1.014098 | F16: 7229.5612 | G16: 0
A17: P9812 | B17: Engenheiro | C17: mês | D17: 12819.9474 | E17: 0.82593 | F17: 23408.3265 | G17: 0
A18: P9814 | B18: Operacional | C18: mês | D18: 1460.9463 | E18: 1.504089 | F18: 3658.3395 | G18: 0
A19: P9815 | B19: Jardineiro | C19: h | D19: 9.63 | E19: 1.796404 | F19: 26.9293 | G19: 0
A20: P9819 | B20: Engenheiro supervisor | C20: mês | D20: 12819.9474 | E20: 0.82593 | F20: 23408.3265 | G20: 0
A21: P9821 | B21: Pedreiro | C21: h | D21: 8.912 | E21: 1.847871 | F21: 25.3802 | G21: 0
A22: P9822 | B22: Pintor | C22: h | D22: 10.8106 | E22: 1.728949 | F22: 29.5015 | G22: 0
A23: P9823 | B23: Serralheiro | C23: h | D23: 9.3101 | E23: 1.822228 | F23: 26.2752 | G23: 0
A24: P9824 | B24: Servente | C24: h | D24: 6.7 | E24: 2.093643 | F24: 20.7274 | G24: 0
A25: P9825 | B25: Soldador | C25: h | D25: 12.4336 | E25: 1.6457 | F25: 32.8955 | G25: 0
A26: P9826 | B26: Chefe setor de finanças | C26: mês | D26: 9651.0845 | E26: 0.852906 | F26: 17882.5523 | G26: 0
A27: P9827 | B27: Vigia | C27: mês | D27: 1414.3496 | E27: 1.829766 | F27: 4426.5832 | G27: 0.3
A28: P9830 | B28: Montador | C28: h | D28: 10.8106 | E28: 1.800378 | F28: 30.2737 | G28: 0
A29: P9833 | B29: Auxiliar de laboratório | C29: mês | D29: 2378.3386 | E29: 1.260437 | F29: 5376.0845 | G29: 0
A30: P9836 | B30: Geólogo | C30: h | D30: 49.7447 | E30: 1.196306 | F30: 109.2545 | G30: 0
A31: P9837 | B31: Oceanógrafo | C31: mês | D31: 4376.363 | E31: 1.005441 | F31: 8776.5377 | G31: 0
A32: P9840 | B32: Encarregado geral | C32: mês | D32: 5294.449 | E32: 0.930693 | F32: 10221.9556 | G32: 0
A33: P9842 | B33: Faxineiro | C33: mês | D33: 1454.2 | E33: 1.588055 | F33: 3763.5495 | G33: 0
A34: P9843 | B34: Operador de equipamento leve | C34: h | D34: 8.88 | E34: 1.831977 | F34: 25.1479 | G34: 0
A35: P9844 | B35: Capitão fluvial | C35: mês | D35: 5212.4597 | E35: 0.959662 | F35: 10214.6592 | G35: 0
A36: P9845 | B36: Operador de equipamento pesado | C36: h | D36: 11.74 | E36: 1.651178 | F36: 31.1248 | G36: 0
A37: P9846 | B37: Operador de equipamento especial | C37: h | D37: 14.44 | E37: 1.532913 | F37: 36.5752 | G37: 0
A38: P9847 | B38: Perfurador de tubulão | C38: h | D38: 6.9936 | E38: 2.047452 | F38: 21.3126 | G38: 0
A39: P9848 | B39: Desenhista | C39: mês | D39: 3000.8408 | E39: 1.128553 | F39: 6387.4486 | G39: 0
A40: P9849 | B40: Condutor maquinista fluvial | C40: mês | D40: 2162.4018 | E40: 1.25253 | F40: 4870.8749 | G40: 0
A41: P9850 | B41: Copeiro | C41: mês | D41: 1504.8 | E41: 1.529658 | F41: 3806.6293 | G41: 0
A42: P9851 | B42: Médico do trabalho | C42: mês | D42: 9709.5193 | E42: 0.847276 | F42: 17936.1619 | G42: 0
A43: P9852 | B43: Blaster | C43: h | D43: 10.1587 | E43: 2.108382 | F43: 34.6247 | G43: 0.3
A44: P9853 | B44: Pré-marcador | C44: h | D44: 6.993 | E44: 2.022174 | F44: 21.134 | G44: 0
A45: P9854 | B45: Recepcionista | C45: mês | D45: 1686.3401 | E45: 1.416485 | F45: 4075.0155 | G45: 0
A46: P9855 | B46: Marinheiro de máquinas | C46: mês | D46: 2052.3159 | E46: 1.277787 | F46: 4674.7384 | G46: 0
A47: P9856 | B47: Marinheiro de convés | C47: h | D47: 9.1112 | E47: 1.736501 | F47: 24.9328 | G47: 0
A48: P9857 | B48: Marinheiro de convés - mensalista | C48: mês | D48: 2004.4739 | E48: 1.288588 | F48: 4587.4149 | G48: 0
A49: P9858 | B49: Laboratorista | C49: mês | D49: 3262.6 | E49: 1.126851 | F49: 6939.064 | G49: 0
A50: P9859 | B50: Trabalhador de via | C50: h | D50: 6.3405 | E50: 2.163947 | F50: 20.061 | G50: 0
A51: P9861 | B51: Selecionador de material pétreo | C51: h | D51: 6.993 | E51: 2.033898 | F51: 21.216 | G51: 0
A52: P9864 | B52: Engenheiro de segurança do trabalho | C52: mês | D52: 11464.4099 | E52: 0.838737 | F52: 21080.0346 | G52: 0
A53: P9865 | B53: Técnico em enfermagem | C53: mês | D53: 2993.1905 | E53: 1.172613 | F53: 6503.0445 | G53: 0
A54: P9866 | B54: Motorista de caminhão | C54: h | D54: 11.74 | E54: 1.63468 | F54: 30.9311 | G54: 0
A55: P9867 | B55: Técnico especializado - mensalista | C55: mês | D55: 3203.9229 | E55: 1.135288 | F55: 6841.2981 | G55: 0
A56: P9869 | B56: Encarregado de obras de artes especiais | C56: mês | D56: 3589.4784 | E56: 1.014098 | F56: 7229.5612 | G56: 0
A57: P9870 | B57: Motorista de veículo leve | C57: h | D57: 10.8106 | E57: 1.68283 | F57: 29.003 | G57: 0
A58: P9871 | B58: Motorista de veículo especial | C58: h | D58: 11.9736 | E58: 1.624083 | F58: 31.4197 | G58: 0
A59: P9875 | B59: Encarregado de turma | C59: mês | D59: 2295.6486 | E59: 1.277683 | F59: 5228.7597 | G59: 0
A60: P9876 | B60: Técnico de segurança do trabalho | C60: mês | D60: 3262.6 | E60: 1.125343 | F60: 6934.144 | G60: 0
A61: P9878 | B61: Secretária | C61: mês | D61: 2811.595 | E61: 1.155662 | F61: 6060.8485 | G61: 0
A62: P9880 | B62: Piloto fluvial | C62: mês | D62: 3276.33 | E62: 1.080547 | F62: 6816.5585 | G62: 0
A63: P9882 | B63: Técnico especializado | C63: h | D63: 14.5633 | E63: 1.545124 | F63: 37.0654 | G63: 0
A64: P9883 | B64: Chefe do setor administrativo | C64: mês | D64: 3868.0319 | E64: 0.971681 | F64: 7626.525 | G64: 0
A65: P9884 | B65: Encarregado de terraplenagem | C65: mês | D65: 3589.4784 | E65: 1.014098 | F65: 7229.5612 | G65: 0
A66: P9885 | B66: Frentista de túnel | C66: h | D66: 8.88 | E66: 1.891225 | F66: 25.674 | G66: 0
A67: P9889 | B67: Técnico da qualidade | C67: mês | D67: 3523.8065 | E67: 1.024666 | F67: 7134.5312 | G67: 0
A68: P9891 | B68: Engenheiro mecânico | C68: mês | D68: 12659.3302 | E68: 0.828328 | F68: 23145.4078 | G68: 0
A69: P9892 | B69: Auxiliar de blaster | C69: h | D69: 9.63 | E69: 2.145877 | F69: 33.1837 | G69: 0.3
A70: P9893 | B70: Encarregado de pavimentação | C70: mês | D70: 3589.4784 | E70: 1.014098 | F70: 7229.5612 | G70: 0
A71: P9896 | B71: Porteiro | C71: mês | D71: 1454.2 | E71: 1.58758 | F71: 3762.8588 | G71: 0
A72: P9897 | B72: Técnico de meio ambiente | C72: mês | D72: 3466.6378 | E72: 1.030252 | F72: 7038.1483 | G72: 0
A73: P9900 | B73: Comprador | C73: mês | D73: 3233.849 | E73: 1.128609 | F73: 6883.6 | G73: 0
A74: P9901 | B74: Encarregado de superestrutura ferroviária | C74: mês | D74: 3589.4784 | E74: 1.014098 | F74: 7229.5612 | G74: 0
A75: P9903 | B75: Auxiliar técnico | C75: mês | D75: 1741.8271 | E75: 1.43558 | F75: 4242.3592 | G75: 0
A76: P9907 | B76: Comandante de longo curso | C76: mês | D76: 12841.1521 | E76: 0.838136 | F76: 23603.7839 | G76: 0
A77: P9908 | B77: Imediato | C77: mês | D77: 9352.1689 | E77: 0.869113 | F77: 17480.2604 | G77: 0
A78: P9909 | B78: Oficial de náutica | C78: mês | D78: 2597.5548 | E78: 1.16847 | F78: 5632.7196 | G78: 0
A79: P9910 | B79: Oficial de máquinas | C79: mês | D79: 2931.3574 | E79: 1.120374 | F79: 6215.574 | G79: 0
A80: P9911 | B80: Condutor de máquinas | C80: mês | D80: 2162.4018 | E80: 1.25253 | F80: 4870.8749 | G80: 0
A81: P9912 | B81: Capitão fluvial com periculosidade | C81: h | D81: 23.693 | E81: 1.668679 | F81: 70.3369 | G81: 0.3
A82: P9913 | B82: Draguista | C82: mês | D82: 3595.3388 | E82: 1.051671 | F82: 7376.4523 | G82: 0
A83: P9915 | B83: Maquinista | C83: h | D83: 12.3889 | E83: 1.626903 | F83: 32.5444 | G83: 0
A84: P9916 | B84: Encarregado de conservação rodoviária | C84: mês | D84: 3589.4784 | E84: 1.014098 | F84: 7229.5612 | G84: 0
A85: P9920 | B85: Mestre fluvial | C85: mês | D85: 5212.4597 | E85: 0.959662 | F85: 10214.6592 | G85: 0
A86: P9921 | B86: Mergulhador raso autônomo de emergência | C86: h | D86: 9.2239 | E86: 2.507861 | F86: 34.7562 | G86: 0.2602
A87: P9922 | B87: Mergulhador raso dependente de emergência | C87: h | D87: 9.2756 | E87: 2.580886 | F87: 35.9975 | G87: 0.3
A88: P9924 | B88: Mergulhador raso dependente | C88: h | D88: 9.2756 | E88: 3.983554 | F88: 49.0081 | G88: 0.3
A89: P9925 | B89: Mergulhador raso autônomo | C89: h | D89: 9.2239 | E89: 3.608643 | F89: 44.9097 | G89: 0.2602
A90: P9926 | B90: Mergulhador raso auxiliar de superfície | C90: h | D90: 9.2239 | E90: 2.26502 | F90: 32.5162 | G90: 0.2602
A91: P9927 | B91: Frentista de túnel com periculosidade | C91: h | D91: 8.88 | E91: 2.218825 | F91: 31.2471 | G91: 0.3
A92: P9928 | B92: Servente com periculosidade | C92: h | D92: 6.7 | E92: 2.421243 | F92: 24.9323 | G92: 0.3
A93: P9929 | B93: Bombeiro hidráulico com periculosidade | C93: h | D93: 10.8106 | E93: 2.127621 | F93: 37.0546 | G93: 0.3
A94: P9930 | B94: Eletricista com periculosidade | C94: h | D94: 10.4335 | E94: 2.123607 | F94: 35.7202 | G94: 0.3
A95: P9931 | B95: Operador de equipamento de mergulho | C95: h | D95: 17.4782 | E95: 1.793834 | F95: 51.2309 | G95: 0.1373
A96: P9932 | B96: Operador de equipamento pesado com periculosidade | C96: h | D96: 11.74 | E96: 1.978538 | F96: 38.49 | G96: 0.3
A97: P9933 | B97: Supervisor de mergulho raso | C97: mês | D97: 3845.1956 | E97: 1.318493 | F97: 9443.0044 | G97: 0.1373
A98: P9934 | B98: Motorista de veículo especial com periculosidade | C98: h | D98: 11.9736 | E98: 1.951535 | F98: 38.9325 | G98: 0.3
A99: P9938 | B99: Operador de equipamento leve com periculosidade | C99: h | D99: 8.88 | E99: 2.159337 | F99: 30.7189 | G99: 0.3
A100: P9939 | B100: Operador de equipamento leve com insalubridade | C100: h | D100: 8.88 | E100: 2.341699 | F100: 32.0745 | G100: 0.2703
A101: P9940 | B101: Piloto fluvial com periculosidade | C101: h | D101: 14.8924 | E101: 1.814411 | F101: 46.381 | G101: 0.3
A102: P9941 | B102: Mestre fluvial com periculosidade | C102: h | D102: 23.693 | E102: 1.668679 | F102: 70.3369 | G102: 0.3
A103: P9942 | B103: Marinheiro de convés com periculosidade | C103: h | D103: 9.1112 | E103: 2.064946 | F103: 30.6586 | G103: 0.3
A104: P9943 | B104: Técnico de batimetria com periculosidade | C104: h | D104: 11.8674 | E104: 1.915685 | F104: 38.1618 | G104: 0.3
A105: P9944 | B105: Operador de equipamento especial com periculosidade | C105: h | D105: 14.44 | E105: 1.860273 | F105: 45.6343 | G105: 0.3
A106: P9945 | B106: Draguista com periculosidade | C106: h | D106: 16.3424 | E106: 1.7796 | F106: 50.328 | G106: 0.3
A107: P9946 | B107: Engenheiro auxiliar | C107: mês | D107: 11220 | E107: 0.835617 | F107: 20595.6227 | G107: 0
A108: P9947 | B108: Técnico florestal | C108: mês | D108: 3466.6378 | E108: 1.030252 | F108: 7038.1483 | G108: 0
A109: P9948 | B109: Motorista de veículo leve - mensalista | C109: mês | D109: 2378.3386 | E109: 1.24979 | F109: 5350.7623 | G109: 0
A110: P9949 | B110: Topógrafo | C110: mês | D110: 4037 | E110: 0.996775 | F110: 8060.9806 | G110: 0
A111: P9950 | B111: Auxiliar de topografia | C111: mês | D111: 2378.3386 | E111: 1.271731 | F111: 5402.9455 | G111: 0
A112: P9951 | B112: Médico de câmara hiperbárica | C112: mês | D112: 9709.5193 | E112: 1.037892 | F112: 20315.1495 | G112: 0.0544
A113: P9952 | B113: Pedreiro - mensalista | C113: mês | D113: 1960.6314 | E113: 1.388259 | F113: 4682.4955 | G113: 0
A114: P9953 | B114: Eletricista - mensalista | C114: mês | D114: 2295.3553 | E114: 1.344024 | F114: 5380.3679 | G114: 0
A115: P9954 | B115: Servente - mensalista | C115: mês | D115: 1474 | E115: 1.594056 | F115: 3823.6385 | G115: 0
A116: P9955 | B116: Engenheiro chefe | C116: mês | D116: 16940.0825 | E116: 0.809408 | F116: 30651.5207 | G116: 0
A117: P9956 | B117: Motorista de caminhão com periculosidade | C117: h | D117: 11.74 | E117: 1.96213 | F117: 38.2974 | G117: 0.3
A118: P9972 | B118: Técnico de batimetria | C118: mês | D118: 2610.8367 | E118: 1.167737 | F118: 5659.6073 | G118: 0

Sheet DNIT
A1: Código | B1: Categoria | C1: Unid. | D1: Salário | E1: Encargos Sociais | G1: Encargos Complementares | Q1: Encargos Adicionais | W1: Encargos Totais | Y1: Valor Total
G2: Alimentação | I2: EPI | K2: Ferramenta | M2: Transporte | O2: Exame Ocupacional | Q2: Cesta Básica | S2: Assistência Médica | U2: Seguro de Vida
D3: R$ | E3: % | F3: R$ | G3: % | H3: R$ | I3: % | J3: R$ | K3: % | L3: R$ | M3: % | N3: R$ | O3: % | P3: R$ | Q3: % | R3: R$ | S3: % | T3: R$ | U3: % | V3: R$ | W3: % | X3: R$ | Y3: R$
A4: P8001 | B4: Advogado júnior | C4: mês | D4: 4281.78 | E4: 0.7952 | F4: 3404.88 | G4: 0.1642 | H4: 702.89 | I4: 0.0058 | J4: 24.8 | K4: 0 | L4: 0 | M4: 0 | N4: 0 | O4: 0.0007 | P4: 3.02 | Q4: 0 | R4: 0 | S4: 0.0671 | T4: 287.2 | U4: 0.0023 | V4: 9.98 | W4: 1.0353 | X4: 4432.76 | Y4: 8714.55
A5: P8002 | B5: Advogado pleno | C5: mês | D5: 5709.05 | E5: 0.7952 | F5: 4539.83 | G5: 0.1231 | H5: 702.89 | I5: 0.0043 | J5: 24.8 | K5: 0 | L5: 0 | M5: 0 | N5: 0 | O5: 0.0005 | P5: 3.02 | Q5: 0 | R5: 0 | S5: 0.0503 | T5: 287.2 | U5: 0.0017 | V5: 9.98 | W5: 0.9752 | X5: 5567.72 | Y5: 11276.77
A6: P8003 | B6: Advogado sênior | C6: mês | D6: 10130.91 | E6: 0.7952 | F6: 8056.1 | G6: 0.0694 | H6: 702.89 | I6: 0.0024 | J6: 24.8 | K6: 0 | L6: 0 | M6: 0 | N6: 0 | O6: 0.0003 | P6: 3.02 | Q6: 0 | R6: 0 | S6: 0.0283 | T6: 287.2 | U6: 0.001 | V6: 9.98 | W6: 0.8967 | X6: 9083.99 | Y6: 19214.9
A7: P8007 | B7: Analista de desenvolvimento de sistemas júnior | C7: mês | D7: 4013.75 | E7: 0.7941 | F7: 3187.32 | G7: 0.1751 | H7: 702.89 | I7: 0 | J7: 0 | K7: 0 | L7: 0 | M7: 0 | N7: 0 | O7: 0.0009 | P7: 3.46 | Q7: 0 | R7: 0 | S7: 0.0716 | T7: 287.2 | U7: 0.0025 | V7: 9.98 | W7: 1.0441 | X7: 4190.85 | Y7: 8204.59
A8: P8008 | B8: Analista de desenvolvimento de sistemas pleno | C8: mês | D8: 5130.15 | E8: 0.7941 | F8: 4073.85 | G8: 0.137 | H8: 702.89 | I8: 0 | J8: 0 | K8: 0 | L8: 0 | M8: 0 | N8: 0 | O8: 0.0007 | P8: 3.46 | Q8: 0 | R8: 0 | S8: 0.056 | T8: 287.2 | U8: 0.0019 | V8: 9.98 | W8: 0.9897 | X8: 5077.38 | Y8: 10207.53
A9: P8009 | B9: Analista de desenvolvimento de sistemas sênior | C9: mês | D9: 9196.66 | E9: 0.7941 | F9: 7303.07 | G9: 0.0764 | H9: 702.89 | I9: 0 | J9: 0 | K9: 0 | L9: 0 | M9: 0 | N9: 0 | O9: 0.0004 | P9: 3.46 | Q9: 0 | R9: 0 | S9: 0.0312 | T9: 287.2 | U9: 0.0011 | V9: 9.98 | W9: 0.9032 | X9: 8306.6 | Y9: 17503.26
A10: P8013 | B10: Arquiteto júnior | C10: mês | D10: 11220 | E10: 0.793 | F10: 8897.46 | G10: 0.0626 | H10: 702.89 | I10: 0.0022 | J10: 24.8 | K10: 0 | L10: 0 | M10: 0 | N10: 0 | O10: 0.0003 | P10: 3.43 | Q10: 0 | R10: 0 | S10: 0.0256 | T10: 287.2 | U10: 0.0009 | V10: 9.98 | W10: 0.8846 | X10: 9925.76 | Y10: 21145.76
A11: P8014 | B11: Arquiteto pleno | C11: mês | D11: 11626.7 | E11: 0.793 | F11: 9219.97 | G11: 0.0605 | H11: 702.89 | I11: 0.0021 | J11: 24.8 | K11: 0 | L11: 0 | M11: 0 | N11: 0 | O11: 0.0003 | P11: 3.43 | Q11: 0 | R11: 0 | S11: 0.0247 | T11: 287.2 | U11: 0.0009 | V11: 9.98 | W11: 0.8814 | X11: 10248.27 | Y11: 21874.97
A12: P8015 | B12: Arquiteto sênior | C12: mês | D12: 14229.73 | E12: 0.793 | F12: 11284.18 | G12: 0.0494 | H12: 702.89 | I12: 0.0017 | J12: 24.8 | K12: 0 | L12: 0 | M12: 0 | N12: 0 | O12: 0.0002 | P12: 3.43 | Q12: 0 | R12: 0 | S12: 0.0202 | T12: 287.2 | U12: 0.0007 | V12: 9.98 | W12: 0.8653 | X12: 12312.48 | Y12: 26542.21
A13: P8019 | B13: Assistente social júnior | C13: mês | D13: 3020.78 | E13: 0.7998 | F13: 2416.02 | G13: 0.2327 | H13: 702.89 | I13: 0.0082 | J13: 24.8 | K13: 0 | L13: 0 | M13: 0.0125 | N13: 37.78 | O13: 0.0016 | P13: 4.7 | Q13: 0 | R13: 0 | S13: 0.0951 | T13: 287.2 | U13: 0.0033 | V13: 9.98 | W13: 1.1531 | X13: 3483.38 | Y13: 6504.16
A14: P8020 | B14: Assistente social pleno | C14: mês | D14: 4027.71 | E14: 0.7998 | F14: 3221.36 | G14: 0.1745 | H14: 702.89 | I14: 0.0062 | J14: 24.8 | K14: 0 | L14: 0 | M14: 0 | N14: 0 | O14: 0.0012 | P14: 4.7 | Q14: 0 | R14: 0 | S14: 0.0713 | T14: 287.2 | U14: 0.0025 | V14: 9.98 | W14: 1.0554 | X14: 4250.93 | Y14: 8278.64
A15: P8021 | B15: Assistente social sênior | C15: mês | D15: 6830.21 | E15: 0.7998 | F15: 5462.8 | G15: 0.1029 | H15: 702.89 | I15: 0.0036 | J15: 24.8 | K15: 0 | L15: 0 | M15: 0 | N15: 0 | O15: 0.0007 | P15: 4.7 | Q15: 0 | R15: 0 | S15: 0.042 | T15: 287.2 | U15: 0.0015 | V15: 9.98 | W15: 0.9505 | X15: 6492.37 | Y15: 13322.58
A16: P8025 | B16: Auxiliar | C16: mês | D16: 1467.63 | E16: 0.8047 | F16: 1181 | G16: 0.4789 | H16: 702.89 | I16: 0.0206 | J16: 30.19 | K16: 0.0011 | L16: 1.55 | M16: 0.0892 | N16: 130.97 | O16: 0.0045 | P16: 6.67 | Q16: 0 | R16: 0 | S16: 0.1957 | T16: 287.2 | U16: 0.0068 | V16: 9.98 | W16: 1.6015 | X16: 2350.46 | Y16: 3818.09
A17: P8026 | B17: Auxiliar administrativo | C17: mês | D17: 1772.08 | E17: 0.8012 | F17: 1419.79 | G17: 0.3966 | H17: 702.89 | I17: 0 | J17: 0 | K17: 0 | L17: 0 | M17: 0.0636 | N17: 112.71 | O17: 0.0022 | P17: 3.83 | Q17: 0 | R17: 0 | S17: 0.1621 | T17: 287.2 | U17: 0.0056 | V17: 9.98 | W17: 1.4313 | X17: 2536.41 | Y17: 4308.49
A18: P8027 | B18: Auxiliar de laboratório | C18: mês | D18: 1618.28 | E18: 0.8008 | F18: 1295.92 | G18: 0.4343 | H18: 702.89 | I18: 0.0187 | J18: 30.19 | K18: 0.002 | L18: 3.19 | M18: 0.0753 | N18: 121.94 | O18: 0.0027 | P18: 4.31 | Q18: 0 | R18: 0 | S18: 0.1775 | T18: 287.2 | U18: 0.0062 | V18: 9.98 | W18: 1.5174 | X18: 2455.62 | Y18: 4073.9
A19: P8028 | B19: Auxiliar de topografia | C19: mês | D19: 1467.63 | E19: 0.8017 | F19: 1176.6 | G19: 0.4789 | H19: 702.89 | I19: 0.0206 | J19: 30.19 | K19: 0.0009 | L19: 1.35 | M19: 0.0892 | N19: 130.97 | O19: 0.0032 | P19: 4.7 | Q19: 0 | R19: 0 | S19: 0.1957 | T19: 287.2 | U19: 0.0068 | V19: 9.98 | W19: 1.5971 | X19: 2343.88 | Y19: 3811.52
A20: P8032 | B20: Biólogo júnior | C20: mês | D20: 3175.35 | E20: 0.7956 | F20: 2526.31 | G20: 0.2214 | H20: 702.89 | I20: 0.0078 | J20: 24.8 | K20: 0 | L20: 0 | M20: 0.009 | N20: 28.51 | O20: 0.0012 | P20: 3.77 | Q20: 0 | R20: 0 | S20: 0.0904 | T20: 287.2 | U20: 0.0031 | V20: 9.98 | W20: 1.1285 | X20: 3583.46 | Y20: 6758.81
A21: P8033 | B21: Biólogo pleno | C21: mês | D21: 4233.8 | E21: 0.7956 | F21: 3368.41 | G21: 0.166 | H21: 702.89 | I21: 0.0059 | J21: 24.8 | K21: 0 | L21: 0 | M21: 0 | N21: 0 | O21: 0.0009 | P21: 3.77 | Q21: 0 | R21: 0 | S21: 0.0678 | T21: 287.2 | U21: 0.0024 | V21: 9.98 | W21: 1.0386 | X21: 4397.05 | Y21: 8630.85
A22: P8034 | B22: Biólogo sênior | C22: mês | D22: 7434.92 | E22: 0.7956 | F22: 5915.22 | G22: 0.0945 | H22: 702.89 | I22: 0.0033 | J22: 24.8 | K22: 0 | L22: 0 | M22: 0 | N22: 0 | O22: 0.0005 | P22: 3.77 | Q22: 0 | R22: 0 | S22: 0.0386 | T22: 287.2 | U22: 0.0013 | V22: 9.98 | W22: 0.934 | X22: 6943.86 | Y22: 14378.78
A23: P8038 | B23: Chefe de escritório | C23: mês | D23: 3370.83 | E23: 0.7957 | F23: 2682.17 | G23: 0.2085 | H23: 702.89 | I23: 0 | J23: 0 | K23: 0 | L23: 0 | M23: 0.005 | N23: 16.78 | O23: 0.0008 | P23: 2.74 | Q23: 0 | R23: 0 | S23: 0.0852 | T23: 287.2 | U23: 0.003 | V23: 9.98 | W23: 1.0982 | X23: 3701.76 | Y23: 7072.59
A24: P8040 | B24: Contador júnior | C24: mês | D24: 4031.96 | E24: 0.7953 | F24: 3206.62 | G24: 0.1743 | H24: 702.89 | I24: 0 | J24: 0 | K24: 0 | L24: 0 | M24: 0 | N24: 0 | O24: 0.0006 | P24: 2.61 | Q24: 0 | R24: 0 | S24: 0.0712 | T24: 287.2 | U24: 0.0025 | V24: 9.98 | W24: 1.044 | X24: 4209.31 | Y24: 8241.27
A25: P8041 | B25: Contador pleno | C25: mês | D25: 5375.95 | E25: 0.7953 | F25: 4275.49 | G25: 0.1307 | H25: 702.89 | I25: 0 | J25: 0 | K25: 0 | L25: 0 | M25: 0 | N25: 0 | O25: 0.0005 | P25: 2.61 | Q25: 0 | R25: 0 | S25: 0.0534 | T25: 287.2 | U25: 0.0019 | V25: 9.98 | W25: 0.9818 | X25: 5278.18 | Y25: 10654.13
A26: P8042 | B26: Contador sênior | C26: mês | D26: 10196.46 | E26: 0.7953 | F26: 8109.24 | G26: 0.0689 | H26: 702.89 | I26: 0 | J26: 0 | K26: 0 | L26: 0 | M26: 0 | N26: 0 | O26: 0.0003 | P26: 2.61 | Q26: 0 | R26: 0 | S26: 0.0282 | T26: 287.2 | U26: 0.001 | V26: 9.98 | W26: 0.8936 | X26: 9111.93 | Y26: 19308.39
A27: P8044 | B27: Coordenador ambiental | C27: mês | D27: 16968.79 | E27: 0.7948 | F27: 13486.79 | G27: 0.0414 | H27: 702.89 | I27: 0.0013 | J27: 22.65 | K27: 0 | L27: 0 | M27: 0 | N27: 0 | O27: 0.0002 | P27: 3.32 | Q27: 0 | R27: 0 | S27: 0.0169 | T27: 287.2 | U27: 0.0006 | V27: 9.98 | W27: 0.8553 | X27: 14512.83 | Y27: 31481.62
A28: P8045 | B28: Economista júnior | C28: mês | D28: 4633.61 | E28: 0.79 | F28: 3660.55 | G28: 0.1517 | H28: 702.89 | I28: 0 | J28: 0 | K28: 0 | L28: 0 | M28: 0 | N28: 0 | O28: 0.0004 | P28: 1.78 | Q28: 0 | R28: 0 | S28: 0.062 | T28: 287.2 | U28: 0.0022 | V28: 9.98 | W28: 1.0062 | X28: 4662.4 | Y28: 9296
A29: P8046 | B29: Economista pleno | C29: mês | D29: 6178.14 | E29: 0.79 | F29: 4880.73 | G29: 0.1138 | H29: 702.89 | I29: 0 | J29: 0 | K29: 0 | L29: 0 | M29: 0 | N29: 0 | O29: 0.0003 | P29: 1.78 | Q29: 0 | R29: 0 | S29: 0.0465 | T29: 287.2 | U29: 0.0016 | V29: 9.98 | W29: 0.9522 | X29: 5882.58 | Y29: 12060.72
A30: P8047 | B30: Economista sênior | C30: mês | D30: 10535.44 | E30: 0.79 | F30: 8323 | G30: 0.0667 | H30: 702.89 | I30: 0 | J30: 0 | K30: 0 | L30: 0 | M30: 0 | N30: 0 | O30: 0.0002 | P30: 1.78 | Q30: 0 | R30: 0 | S30: 0.0273 | T30: 287.2 | U30: 0.0009 | V30: 9.98 | W30: 0.8851 | X30: 9324.84 | Y30: 19860.28
A31: P8054 | B31: Engenheiro agrônomo júnior | C31: mês | D31: 11220 | E31: 0.7905 | F31: 8869.41 | G31: 0.0626 | H31: 702.89 | I31: 0.0022 | J31: 24.8 | K31: 0 | L31: 0 | M31: 0 | N31: 0 | O31: 0.0002 | P31: 2.64 | Q31: 0 | R31: 0 | S31: 0.0256 | T31: 287.2 | U31: 0.0009 | V31: 9.98 | W31: 0.8821 | X31: 9896.93 | Y31: 21116.93
A32: P8055 | B32: Engenheiro agrônomo pleno | C32: mês | D32: 11530.62 | E32: 0.7905 | F32: 9114.95 | G32: 0.061 | H32: 702.89 | I32: 0.0022 | J32: 24.8 | K32: 0 | L32: 0 | M32: 0 | N32: 0 | O32: 0.0002 | P32: 2.64 | Q32: 0 | R32: 0 | S32: 0.0249 | T32: 287.2 | U32: 0.0009 | V32: 9.98 | W32: 0.8796 | X32: 10142.47 | Y32: 21673.09
A33: P8056 | B33: Engenheiro agrônomo sênior | C33: mês | D33: 13314.45 | E33: 0.7905 | F33: 10525.07 | G33: 0.0528 | H33: 702.89 | I33: 0.0019 | J33: 24.8 | K33: 0 | L33: 0 | M33: 0 | N33: 0 | O33: 0.0002 | P33: 2.64 | Q33: 0 | R33: 0 | S33: 0.0216 | T33: 287.2 | U33: 0.0007 | V33: 9.98 | W33: 0.8677 | X33: 11552.59 | Y33: 24867.03
A34: P8057 | B34: Engenheiro ambiental júnior | C34: mês | D34: 11220 | E34: 0.7958 | F34: 8928.88 | G34: 0.0626 | H34: 702.89 | I34: 0.0022 | J34: 24.8 | K34: 0 | L34: 0 | M34: 0 | N34: 0 | O34: 0.0003 | P34: 3.6 | Q34: 0 | R34: 0 | S34: 0.0256 | T34: 287.2 | U34: 0.0009 | V34: 9.98 | W34: 0.8875 | X34: 9957.34 | Y34: 21177.34
A35: P8058 | B35: Engenheiro ambiental pleno | C35: mês | D35: 11266.87 | E35: 0.7958 | F35: 8966.17 | G35: 0.0624 | H35: 702.89 | I35: 0.0022 | J35: 24.8 | K35: 0 | L35: 0 | M35: 0 | N35: 0 | O35: 0.0003 | P35: 3.6 | Q35: 0 | R35: 0 | S35: 0.0255 | T35: 287.2 | U35: 0.0009 | V35: 9.98 | W35: 0.8871 | X35: 9994.64 | Y35: 21261.51
A36: P8059 | B36: Engenheiro ambiental sênior | C36: mês | D36: 13578.83 | E36: 0.7958 | F36: 10806.03 | G36: 0.0518 | H36: 702.89 | I36: 0.0018 | J36: 24.8 | K36: 0 | L36: 0 | M36: 0 | N36: 0 | O36: 0.0003 | P36: 3.6 | Q36: 0 | R36: 0 | S36: 0.0212 | T36: 287.2 | U36: 0.0007 | V36: 9.98 | W36: 0.8715 | X36: 11834.5 | Y36: 25413.33
A37: P8060 | B37: Engenheiro consultor especial | C37: mês | D37: 20551.86 | E37: 0.7945 | F37: 16328.45 | G37: 0.0342 | H37: 702.89 | I37: 0.0011 | J37: 22.65 | K37: 0 | L37: 0 | M37: 0 | N37: 0 | O37: 0.0002 | P37: 3.66 | Q37: 0 | R37: 0 | S37: 0.014 | T37: 287.2 | U37: 0.0005 | V37: 9.98 | W37: 0.8444 | X37: 17354.83 | Y37: 37906.68
A38: P8061 | B38: Engenheiro coordenador | C38: mês | D38: 17126.55 | E38: 0.7945 | F38: 13607.04 | G38: 0.041 | H38: 702.89 | I38: 0.0013 | J38: 22.65 | K38: 0 | L38: 0 | M38: 0 | N38: 0 | O38: 0.0002 | P38: 3.66 | Q38: 0 | R38: 0 | S38: 0.0168 | T38: 287.2 | U38: 0.0006 | V38: 9.98 | W38: 0.8544 | X38: 14633.42 | Y38: 31759.96
A39: P8062 | B39: Engenheiro de pesca júnior | C39: mês | D39: 11220 | E39: 0.8012 | F39: 8989.46 | G39: 0.0626 | H39: 702.89 | I39: 0.0022 | J39: 24.8 | K39: 0 | L39: 0 | M39: 0 | N39: 0 | O39: 0.0004 | P39: 4.63 | Q39: 0 | R39: 0 | S39: 0.0256 | T39: 287.2 | U39: 0.0009 | V39: 9.98 | W39: 0.893 | X39: 10018.97 | Y39: 21238.97
A40: P8063 | B40: Engenheiro de pesca pleno | C40: mês | D40: 11526.37 | E40: 0.8012 | F40: 9234.93 | G40: 0.061 | H40: 702.89 | I40: 0.0022 | J40: 24.8 | K40: 0 | L40: 0 | M40: 0 | N40: 0 | O40: 0.0004 | P40: 4.63 | Q40: 0 | R40: 0 | S40: 0.0249 | T40: 287.2 | U40: 0.0009 | V40: 9.98 | W40: 0.8905 | X40: 10264.43 | Y40: 21790.8
A41: P8064 | B41: Engenheiro de pesca sênior | C41: mês | D41: 13764.58 | E41: 0.8012 | F41: 11028.19 | G41: 0.0511 | H41: 702.89 | I41: 0.0018 | J41: 24.8 | K41: 0 | L41: 0 | M41: 0 | N41: 0 | O41: 0.0003 | P41: 4.63 | Q41: 0 | R41: 0 | S41: 0.0209 | T41: 287.2 | U41: 0.0007 | V41: 9.98 | W41: 0.876 | X41: 12057.69 | Y41: 25822.27
A42: P8065 | B42: Engenheiro de projetos júnior | C42: mês | D42: 11220 | E42: 0.7945 | F42: 8914.29 | G42: 0.0626 | H42: 702.89 | I42: 0.0022 | J42: 24.8 | K42: 0 | L42: 0 | M42: 0 | N42: 0 | O42: 0.0003 | P42: 3.66 | Q42: 0 | R42: 0 | S42: 0.0256 | T42: 287.2 | U42: 0.0009 | V42: 9.98 | W42: 0.8862 | X42: 9942.82 | Y42: 21162.82
A43: P8066 | B43: Engenheiro de projetos pleno | C43: mês | D43: 11669.34 | E43: 0.7945 | F43: 9271.29 | G43: 0.0602 | H43: 702.89 | I43: 0.0021 | J43: 24.8 | K43: 0 | L43: 0 | M43: 0 | N43: 0 | O43: 0.0003 | P43: 3.66 | Q43: 0 | R43: 0 | S43: 0.0246 | T43: 287.2 | U43: 0.0009 | V43: 9.98 | W43: 0.8826 | X43: 10299.82 | Y43: 21969.16
A44: P8067 | B44: Engenheiro de projetos sênior | C44: mês | D44: 14809.88 | E44: 0.7945 | F44: 11766.45 | G44: 0.0475 | H44: 702.89 | I44: 0.0017 | J44: 24.8 | K44: 0 | L44: 0 | M44: 0 | N44: 0 | O44: 0.0002 | P44: 3.66 | Q44: 0 | R44: 0 | S44: 0.0194 | T44: 287.2 | U44: 0.0007 | V44: 9.98 | W44: 0.8639 | X44: 12794.98 | Y44: 27604.86
A45: P8068 | B45: Engenheiro florestal júnior | C45: mês | D45: 11220 | E45: 0.8012 | F45: 8989.46 | G45: 0.0626 | H45: 702.89 | I45: 0.0022 | J45: 24.8 | K45: 0 | L45: 0 | M45: 0 | N45: 0 | O45: 0.0004 | P45: 4.63 | Q45: 0 | R45: 0 | S45: 0.0256 | T45: 287.2 | U45: 0.0009 | V45: 9.98 | W45: 0.893 | X45: 10018.97 | Y45: 21238.97
A46: P8069 | B46: Engenheiro florestal pleno | C46: mês | D46: 11526.37 | E46: 0.8012 | F46: 9234.93 | G46: 0.061 | H46: 702.89 | I46: 0.0022 | J46: 24.8 | K46: 0 | L46: 0 | M46: 0 | N46: 0 | O46: 0.0004 | P46: 4.63 | Q46: 0 | R46: 0 | S46: 0.0249 | T46: 287.2 | U46: 0.0009 | V46: 9.98 | W46: 0.8905 | X46: 10264.43 | Y46: 21790.8
A47: P8070 | B47: Engenheiro florestal sênior | C47: mês | D47: 13764.58 | E47: 0.8012 | F47: 11028.19 | G47: 0.0511 | H47: 702.89 | I47: 0.0018 | J47: 24.8 | K47: 0 | L47: 0 | M47: 0 | N47: 0 | O47: 0.0003 | P47: 4.63 | Q47: 0 | R47: 0 | S47: 0.0209 | T47: 287.2 | U47: 0.0007 | V47: 9.98 | W47: 0.876 | X47: 12057.69 | Y47: 25822.27
A48: P8080 | B48: Geólogo júnior | C48: mês | D48: 10004.5 | E48: 0.7985 | F48: 7988.59 | G48: 0.0703 | H48: 702.89 | I48: 0.0025 | J48: 24.8 | K48: 0 | L48: 0 | M48: 0 | N48: 0 | O48: 0.0004 | P48: 3.91 | Q48: 0 | R48: 0 | S48: 0.0287 | T48: 287.2 | U48: 0.001 | V48: 9.98 | W48: 0.9013 | X48: 9017.38 | Y48: 19021.88
A49: P8081 | B49: Geólogo pleno | C49: mês | D49: 11482.37 | E49: 0.7985 | F49: 9168.67 | G49: 0.0612 | H49: 702.89 | I49: 0.0022 | J49: 24.8 | K49: 0 | L49: 0 | M49: 0 | N49: 0 | O49: 0.0003 | P49: 3.91 | Q49: 0 | R49: 0 | S49: 0.025 | T49: 287.2 | U49: 0.0009 | V49: 9.98 | W49: 0.8881 | X49: 10197.46 | Y49: 21679.83
A50: P8082 | B50: Geólogo sênior | C50: mês | D50: 13792.18 | E50: 0.7985 | F50: 11013.06 | G50: 0.051 | H50: 702.89 | I50: 0.0018 | J50: 24.8 | K50: 0 | L50: 0 | M50: 0 | N50: 0 | O50: 0.0003 | P50: 3.91 | Q50: 0 | R50: 0 | S50: 0.0208 | T50: 287.2 | U50: 0.0007 | V50: 9.98 | W50: 0.8731 | X50: 12041.84 | Y50: 25834.02
A51: P8092 | B51: Jornalista júnior | C51: mês | D51: 2779.77 | E51: 0.7961 | F51: 2212.97 | G51: 0.2529 | H51: 702.89 | I51: 0.0089 | J51: 24.8 | K51: 0 | L51: 0 | M51: 0.0188 | N51: 52.25 | O51: 0.001 | P51: 2.92 | Q51: 0 | R51: 0 | S51: 0.1033 | T51: 287.2 | U51: 0.0036 | V51: 9.98 | W51: 1.1846 | X51: 3293 | Y51: 6072.77
A52: P8093 | B52: Jornalista pleno | C52: mês | D52: 3706.35 | E52: 0.7961 | F52: 2950.63 | G52: 0.1896 | H52: 702.89 | I52: 0.0067 | J52: 24.8 | K52: 0 | L52: 0 | M52: 0 | N52: 0 | O52: 0.0008 | P52: 2.92 | Q52: 0 | R52: 0 | S52: 0.0775 | T52: 287.2 | U52: 0.0027 | V52: 9.98 | W52: 1.0734 | X52: 3978.42 | Y52: 7684.77
A53: P8094 | B53: Jornalista sênior | C53: mês | D53: 7205.54 | E53: 0.7961 | F53: 5736.33 | G53: 0.0975 | H53: 702.89 | I53: 0.0034 | J53: 24.8 | K53: 0 | L53: 0 | M53: 0 | N53: 0 | O53: 0.0004 | P53: 2.92 | Q53: 0 | R53: 0 | S53: 0.0399 | T53: 287.2 | U53: 0.0014 | V53: 9.98 | W53: 0.9387 | X53: 6764.12 | Y53: 13969.66
A54: P8098 | B54: Laboratorista | C54: mês | D54: 2157.71 | E54: 0.8008 | F54: 1727.89 | G54: 0.3258 | H54: 702.89 | I54: 0.0129 | J54: 27.8 | K54: 0 | L54: 0 | M54: 0.0415 | N54: 89.57 | O54: 0.002 | P54: 4.31 | Q54: 0 | R54: 0 | S54: 0.1331 | T54: 287.2 | U54: 0.0046 | V54: 9.98 | W54: 1.3207 | X54: 2849.65 | Y54: 5007.36
A55: P8102 | B55: Médico veterinário | C55: mês | D55: 11220 | E55: 0.7922 | F55: 8888.48 | G55: 0.0626 | H55: 702.89 | I55: 0.0022 | J55: 24.8 | K55: 0 | L55: 0 | M55: 0 | N55: 0 | O55: 0.0003 | P55: 3.08 | Q55: 0 | R55: 0 | S55: 0.0256 | T55: 287.2 | U55: 0.0009 | V55: 9.98 | W55: 0.8838 | X55: 9916.43 | Y55: 21136.43
A56: P8106 | B56: Meteorologista júnior | C56: mês | D56: 4941.05 | E56: 0.7932 | F56: 3919.24 | G56: 0.1423 | H56: 702.89 | I56: 0.005 | J56: 24.8 | K56: 0 | L56: 0 | M56: 0 | N56: 0 | O56: 0.0004 | P56: 2.18 | Q56: 0 | R56: 0 | S56: 0.0581 | T56: 287.2 | U56: 0.002 | V56: 9.98 | W56: 1.0011 | X56: 4946.29 | Y56: 9887.34
A57: P8107 | B57: Meteorologista pleno | C57: mês | D57: 6588.06 | E57: 0.7932 | F57: 5225.65 | G57: 0.1067 | H57: 702.89 | I57: 0.0038 | J57: 24.8 | K57: 0 | L57: 0 | M57: 0 | N57: 0 | O57: 0.0003 | P57: 2.18 | Q57: 0 | R57: 0 | S57: 0.0436 | T57: 287.2 | U57: 0.0015 | V57: 9.98 | W57: 0.9491 | X57: 6252.7 | Y57: 12840.76
A58: P8108 | B58: Meteorologista sênior | C58: mês | D58: 11069.44 | E58: 0.7932 | F58: 8780.28 | G58: 0.0635 | H58: 702.89 | I58: 0.0022 | J58: 24.8 | K58: 0 | L58: 0 | M58: 0 | N58: 0 | O58: 0.0002 | P58: 2.18 | Q58: 0 | R58: 0 | S58: 0.0259 | T58: 287.2 | U58: 0.0009 | V58: 9.98 | W58: 0.886 | X58: 9807.33 | Y58: 20876.78
A59: P8112 | B59: Motorista de caminhão | C59: mês | D59: 2154.65 | E59: 0.8021 | F59: 1728.24 | G59: 0.3262 | H59: 702.89 | I59: 0.014 | J59: 30.19 | K59: 0 | L59: 0 | M59: 0.0417 | N59: 89.75 | O59: 0.0022 | P59: 4.63 | Q59: 0 | R59: 0 | S59: 0.1333 | T59: 287.2 | U59: 0.0046 | V59: 9.98 | W59: 1.3241 | X59: 2852.89 | Y59: 5007.54
A60: P8113 | B60: Motorista de veículo leve | C60: mês | D60: 1953.12 | E60: 0.7992 | F60: 1560.93 | G60: 0.3599 | H60: 702.89 | I60: 0.0155 | J60: 30.19 | K60: 0 | L60: 0 | M60: 0.0521 | N60: 101.84 | O60: 0.0022 | P60: 4.35 | Q60: 0 | R60: 0 | S60: 0.147 | T60: 287.2 | U60: 0.0051 | V60: 9.98 | W60: 1.3811 | X60: 2697.39 | Y60: 4650.51
A61: P8117 | B61: Oceanógrafo júnior | C61: mês | D61: 4548.81 | E61: 0.8002 | F61: 3639.95 | G61: 0.1545 | H61: 702.89 | I61: 0.0055 | J61: 24.8 | K61: 0 | L61: 0 | M61: 0 | N61: 0 | O61: 0.0008 | P61: 3.5 | Q61: 0 | R61: 0 | S61: 0.0631 | T61: 287.2 | U61: 0.0022 | V61: 9.98 | W61: 1.0263 | X61: 4668.32 | Y61: 9217.13
A62: P8118 | B62: Oceanógrafo pleno | C62: mês | D62: 6065.08 | E62: 0.8002 | F62: 4853.27 | G62: 0.1159 | H62: 702.89 | I62: 0.0041 | J62: 24.8 | K62: 0 | L62: 0 | M62: 0 | N62: 0 | O62: 0.0006 | P62: 3.5 | Q62: 0 | R62: 0 | S62: 0.0474 | T62: 287.2 | U62: 0.0016 | V62: 9.98 | W62: 0.9698 | X62: 5881.64 | Y62: 11946.72
A63: P8119 | B63: Oceanógrafo sênior | C63: mês | D63: 10920.23 | E63: 0.8002 | F63: 8738.37 | G63: 0.0644 | H63: 702.89 | I63: 0.0023 | J63: 24.8 | K63: 0 | L63: 0 | M63: 0 | N63: 0 | O63: 0.0003 | P63: 3.5 | Q63: 0 | R63: 0 | S63: 0.0263 | T63: 287.2 | U63: 0.0009 | V63: 9.98 | W63: 0.8944 | X63: 9766.74 | Y63: 20686.96
A64: P8129 | B64: Pedagogo júnior | C64: mês | D64: 2395.68 | E64: 0.8095 | F64: 1939.31 | G64: 0.2934 | H64: 702.89 | I64: 0.0104 | J64: 24.8 | K64: 0 | L64: 0 | M64: 0.0314 | N64: 75.29 | O64: 0.0033 | P64: 7.79 | Q64: 0 | R64: 0 | S64: 0.1199 | T64: 287.2 | U64: 0.0042 | V64: 9.98 | W64: 1.272 | X64: 3047.26 | Y64: 5442.94
A65: P8130 | B65: Pedagogo pleno | C65: mês | D65: 3194.25 | E65: 0.8095 | F65: 2585.74 | G65: 0.22 | H65: 702.89 | I65: 0.0078 | J65: 24.8 | K65: 0 | L65: 0 | M65: 0.0086 | N65: 27.38 | O65: 0.0024 | P65: 7.79 | Q65: 0 | R65: 0 | S65: 0.0899 | T65: 287.2 | U65: 0.0031 | V65: 9.98 | W65: 1.1414 | X65: 3645.78 | Y65: 6840.03
A66: P8131 | B66: Pedagogo sênior | C66: mês | D66: 4952.66 | E66: 0.8095 | F66: 4009.18 | G66: 0.1419 | H66: 702.89 | I66: 0.005 | J66: 24.8 | K66: 0 | L66: 0 | M66: 0 | N66: 0 | O66: 0.0016 | P66: 7.79 | Q66: 0 | R66: 0 | S66: 0.058 | T66: 287.2 | U66: 0.002 | V66: 9.98 | W66: 1.018 | X66: 5041.84 | Y66: 9994.5
A67: P8135 | B67: Secretária | C67: mês | D67: 2434.74 | E67: 0.7988 | F67: 1944.87 | G67: 0.2887 | H67: 702.89 | I67: 0 | J67: 0 | K67: 0 | L67: 0 | M67: 0.03 | N67: 72.95 | O67: 0.0017 | P67: 4.15 | Q67: 0 | R67: 0 | S67: 0.118 | T67: 287.2 | U67: 0.0041 | V67: 9.98 | W67: 1.2412 | X67: 3022.03 | Y67: 5456.77
A68: P8139 | B68: Sondador | C68: mês | D68: 1882.18 | E68: 0.7978 | F68: 1501.6 | G68: 0.3734 | H68: 702.89 | I68: 0.0148 | J68: 27.8 | K68: 0 | L68: 0 | M68: 0.0564 | N68: 106.1 | O68: 0.0019 | P68: 3.57 | Q68: 0 | R68: 0 | S68: 0.1526 | T68: 287.2 | U68: 0.0053 | V68: 9.98 | W68: 1.4022 | X68: 2639.15 | Y68: 4521.33
A69: P8143 | B69: Técnico ambiental | C69: mês | D69: 2719.96 | E69: 0.801 | F69: 2178.69 | G69: 0.2584 | H69: 702.89 | I69: 0.0102 | J69: 27.8 | K69: 0 | L69: 0 | M69: 0.0205 | N69: 55.83 | O69: 0.002 | P69: 5.45 | Q69: 0 | R69: 0 | S69: 0.1056 | T69: 287.2 | U69: 0.0037 | V69: 9.98 | W69: 1.2014 | X69: 3267.85 | Y69: 5987.81
A70: P8147 | B70: Técnico de obras | C70: mês | D70: 3118.31 | E70: 0.7985 | F70: 2489.97 | G70: 0.2254 | H70: 702.89 | I70: 0.0089 | J70: 27.8 | K70: 0 | L70: 0 | M70: 0.0102 | N70: 31.93 | O70: 0.0012 | P70: 3.85 | Q70: 0 | R70: 0 | S70: 0.0921 | T70: 287.2 | U70: 0.0032 | V70: 9.98 | W70: 1.1396 | X70: 3553.62 | Y70: 6671.93
A71: P8151 | B71: Técnico de segurança do trabalho | C71: mês | D71: 4457.84 | E71: 0.8044 | F71: 3585.89 | G71: 0.1577 | H71: 702.89 | I71: 0.0062 | J71: 27.8 | K71: 0 | L71: 0 | M71: 0 | N71: 0 | O71: 0.0011 | P71: 4.87 | Q71: 0 | R71: 0 | S71: 0.0644 | T71: 287.2 | U71: 0.0022 | V71: 9.98 | W71: 1.0361 | X71: 4618.63 | Y71: 9076.47
A72: P8155 | B72: Técnico em geoprocessamento | C72: mês | D72: 2591.14 | E72: 0.7955 | F72: 2061.26 | G72: 0.2713 | H72: 702.89 | I72: 0.0107 | J72: 27.8 | K72: 0 | L72: 0 | M72: 0.0245 | N72: 63.56 | O72: 0.0016 | P72: 4.15 | Q72: 0 | R72: 0 | S72: 0.1108 | T72: 287.2 | U72: 0.0039 | V72: 9.98 | W72: 1.2183 | X72: 3156.85 | Y72: 5747.99
A73: P8159 | B73: Técnico em informática - programador | C73: mês | D73: 4013.75 | E73: 0.7982 | F73: 3203.77 | G73: 0.1751 | H73: 702.89 | I73: 0 | J73: 0 | K73: 0 | L73: 0 | M73: 0 | N73: 0 | O73: 0.0009 | P73: 3.8 | Q73: 0 | R73: 0 | S73: 0.0716 | T73: 287.2 | U73: 0.0025 | V73: 9.98 | W73: 1.0483 | X73: 4207.64 | Y73: 8221.39
A74: P8163 | B74: Topógrafo | C74: mês | D74: 2290.75 | E74: 0.8017 | F74: 1836.49 | G74: 0.3068 | H74: 702.89 | I74: 0.0121 | J74: 27.8 | K74: 0 | L74: 0 | M74: 0.0356 | N74: 81.59 | O74: 0.0021 | P74: 4.7 | Q74: 0 | R74: 0 | S74: 0.1254 | T74: 287.2 | U74: 0.0044 | V74: 9.98 | W74: 1.2881 | X74: 2950.65 | Y74: 5241.4
A75: P8167 | B75: Arquivista júnior | C75: mês | D75: 2182.42 | E75: 0.7984 | F75: 1742.44 | G75: 0.3221 | H75: 702.89 | I75: 0 | J75: 0 | K75: 0 | L75: 0 | M75: 0.0404 | N75: 88.09 | O75: 0.0016 | P75: 3.58 | Q75: 0 | R75: 0 | S75: 0.1316 | T75: 287.2 | U75: 0.0046 | V75: 9.98 | W75: 1.2986 | X75: 2834.19 | Y75: 5016.61
A76: P8168 | B76: Arquivista pleno | C76: mês | D76: 2909.89 | E76: 0.7984 | F76: 2323.26 | G76: 0.2416 | H76: 702.89 | I76: 0 | J76: 0 | K76: 0 | L76: 0 | M76: 0.0153 | N76: 44.44 | O76: 0.0012 | P76: 3.58 | Q76: 0 | R76: 0 | S76: 0.0987 | T76: 287.2 | U76: 0.0034 | V76: 9.98 | W76: 1.1586 | X76: 3371.35 | Y76: 6281.25
A77: P8169 | B77: Arquivista sênior | C77: mês | D77: 4542.09 | E77: 0.7984 | F77: 3626.41 | G77: 0.1548 | H77: 702.89 | I77: 0 | J77: 0 | K77: 0 | L77: 0 | M77: 0 | N77: 0 | O77: 0.0008 | P77: 3.58 | Q77: 0 | R77: 0 | S77: 0.0632 | T77: 287.2 | U77: 0.0022 | V77: 9.98 | W77: 1.0194 | X77: 4630.06 | Y77: 9172.15
A78: P8173 | B78: Administrador júnior | C78: mês | D78: 3166.55 | E78: 0.7972 | F78: 2524.37 | G78: 0.222 | H78: 702.89 | I78: 0 | J78: 0 | K78: 0 | L78: 0 | M78: 0.0092 | N78: 29.04 | O78: 0.0012 | P78: 3.87 | Q78: 0 | R78: 0 | S78: 0.0907 | T78: 287.2 | U78: 0.0032 | V78: 9.98 | W78: 1.1234 | X78: 3557.36 | Y78: 6723.91
A79: P8174 | B79: Administrador pleno | C79: mês | D79: 4222.07 | E79: 0.7972 | F79: 3365.83 | G79: 0.1665 | H79: 702.89 | I79: 0 | J79: 0 | K79: 0 | L79: 0 | M79: 0 | N79: 0 | O79: 0.0009 | P79: 3.87 | Q79: 0 | R79: 0 | S79: 0.068 | T79: 287.2 | U79: 0.0024 | V79: 9.98 | W79: 1.035 | X79: 4369.78 | Y79: 8591.84
A80: P8175 | B80: Administrador sênior | C80: mês | D80: 7442.19 | E80: 0.7972 | F80: 5932.92 | G80: 0.0944 | H80: 702.89 | I80: 0 | J80: 0 | K80: 0 | L80: 0 | M80: 0 | N80: 0 | O80: 0.0005 | P80: 3.87 | Q80: 0 | R80: 0 | S80: 0.0386 | T80: 287.2 | U80: 0.0013 | V80: 9.98 | W80: 0.9321 | X80: 6936.86 | Y80: 14379.06
A81: P8180 | B81: Engenheiro agrimensor júnior | C81: mês | D81: 11220 | E81: 0.7943 | F81: 8912.05 | G81: 0.0626 | H81: 702.89 | I81: 0.0022 | J81: 24.8 | K81: 0 | L81: 0 | M81: 0 | N81: 0 | O81: 0.0003 | P81: 3.87 | Q81: 0 | R81: 0 | S81: 0.0256 | T81: 287.2 | U81: 0.0009 | V81: 9.98 | W81: 0.886 | X81: 9940.79 | Y81: 21160.79
A82: P8181 | B82: Engenheiro agrimensor pleno | C82: mês | D82: 11491.01 | E82: 0.7943 | F82: 9127.31 | G82: 0.0612 | H82: 702.89 | I82: 0.0022 | J82: 24.8 | K82: 0 | L82: 0 | M82: 0 | N82: 0 | O82: 0.0003 | P82: 3.87 | Q82: 0 | R82: 0 | S82: 0.025 | T82: 287.2 | U82: 0.0009 | V82: 9.98 | W82: 0.8838 | X82: 10156.06 | Y82: 21647.07
A83: P8182 | B83: Engenheiro agrimensor sênior | C83: mês | D83: 12631.91 | E83: 0.7943 | F83: 10033.52 | G83: 0.0556 | H83: 702.89 | I83: 0.002 | J83: 24.8 | K83: 0 | L83: 0 | M83: 0 | N83: 0 | O83: 0.0003 | P83: 3.87 | Q83: 0 | R83: 0 | S83: 0.0227 | T83: 287.2 | U83: 0.0008 | V83: 9.98 | W83: 0.8757 | X83: 11062.27 | Y83: 23694.17
A84: P8183 | B84: Geógrafo júnior | C84: mês | D84: 3416.59 | E84: 0.7942 | F84: 2713.45 | G84: 0.2057 | H84: 702.89 | I84: 0.0073 | J84: 24.8 | K84: 0 | L84: 0 | M84: 0.0041 | N84: 14.04 | O84: 0.0008 | P84: 2.73 | Q84: 0 | R84: 0 | S84: 0.0841 | T84: 287.2 | U84: 0.0029 | V84: 9.98 | W84: 1.0991 | X84: 3755.09 | Y84: 7171.68
A85: P8184 | B85: Geógrafo pleno | C85: mês | D85: 4555.45 | E85: 0.7942 | F85: 3617.94 | G85: 0.1543 | H85: 702.89 | I85: 0.0054 | J85: 24.8 | K85: 0 | L85: 0 | M85: 0 | N85: 0 | O85: 0.0006 | P85: 2.73 | Q85: 0 | R85: 0 | S85: 0.063 | T85: 287.2 | U85: 0.0022 | V85: 9.98 | W85: 1.0198 | X85: 4645.54 | Y85: 9200.99
A86: P8185 | B86: Geógrafo sênior | C86: mês | D86: 8786.76 | E86: 0.7942 | F86: 6978.44 | G86: 0.08 | H86: 702.89 | I86: 0.0028 | J86: 24.8 | K86: 0 | L86: 0 | M86: 0 | N86: 0 | O86: 0.0003 | P86: 2.73 | Q86: 0 | R86: 0 | S86: 0.0327 | T86: 287.2 | U86: 0.0011 | V86: 9.98 | W86: 0.9111 | X86: 8006.04 | Y86: 16792.8
A87: P8186 | B87: Antropólogo júnior | C87: mês | D87: 3129 | E87: 0.82 | F87: 2565.78 | G87: 0.2246 | H87: 702.89 | I87: 0.0079 | J87: 24.8 | K87: 0 | L87: 0 | M87: 0.01 | N87: 31.29 | O87: 0.0018 | P87: 5.5 | Q87: 0 | R87: 0 | S87: 0.0918 | T87: 287.2 | U87: 0.0032 | V87: 9.98 | W87: 1.1593 | X87: 3627.44 | Y87: 6756.44
A88: P8187 | B88: Antropólogo pleno | C88: mês | D88: 4172 | E88: 0.82 | F88: 3421.04 | G88: 0.1685 | H88: 702.89 | I88: 0.0059 | J88: 24.8 | K88: 0 | L88: 0 | M88: 0 | N88: 0 | O88: 0.0013 | P88: 5.5 | Q88: 0 | R88: 0 | S88: 0.0688 | T88: 287.2 | U88: 0.0024 | V88: 9.98 | W88: 1.067 | X88: 4451.41 | Y88: 8623.41
A89: P8188 | B89: Antropólogo sênior | C89: mês | D89: 6159.78 | E89: 0.82 | F89: 5051.02 | G89: 0.1141 | H89: 702.89 | I89: 0.004 | J89: 24.8 | K89: 0 | L89: 0 | M89: 0 | N89: 0 | O89: 0.0009 | P89: 5.5 | Q89: 0 | R89: 0 | S89: 0.0466 | T89: 287.2 | U89: 0.0016 | V89: 9.98 | W89: 0.9873 | X89: 6081.39 | Y89: 12241.17
A90: P8189 | B90: Arqueólogo júnior | C90: mês | D90: 2980.05 | E90: 0.8051 | F90: 2399.24 | G90: 0.2359 | H90: 702.89 | I90: 0.0083 | J90: 24.8 | K90: 0 | L90: 0 | M90: 0.0135 | N90: 40.23 | O90: 0.0013 | P90: 3.74 | Q90: 0 | R90: 0 | S90: 0.0964 | T90: 287.2 | U90: 0.0033 | V90: 9.98 | W90: 1.1638 | X90: 3468.08 | Y90: 6448.13
A91: P8190 | B91: Arqueólogo pleno | C91: mês | D91: 3973.4 | E91: 0.8051 | F91: 3198.98 | G91: 0.1769 | H91: 702.89 | I91: 0.0062 | J91: 24.8 | K91: 0 | L91: 0 | M91: 0 | N91: 0 | O91: 0.0009 | P91: 3.74 | Q91: 0 | R91: 0 | S91: 0.0723 | T91: 287.2 | U91: 0.0025 | V91: 9.98 | W91: 1.064 | X91: 4227.6 | Y91: 8201
A92: P8191 | B92: Arqueólogo sênior | C92: mês | D92: 5890.45 | E92: 0.8051 | F92: 4742.4 | G92: 0.1193 | H92: 702.89 | I92: 0.0042 | J92: 24.8 | K92: 0 | L92: 0 | M92: 0 | N92: 0 | O92: 0.0006 | P92: 3.74 | Q92: 0 | R92: 0 | S92: 0.0488 | T92: 287.2 | U92: 0.0017 | V92: 9.98 | W92: 0.9797 | X92: 5771.02 | Y92: 11661.48
A93: P8192 | B93: Historiador júnior | C93: mês | D93: 3434.55 | E93: 0.8014 | F93: 2752.45 | G93: 0.2047 | H93: 702.89 | I93: 0.0072 | J93: 24.8 | K93: 0 | L93: 0 | M93: 0.0038 | N93: 12.96 | O93: 0.0013 | P93: 4.54 | Q93: 0 | R93: 0 | S93: 0.0836 | T93: 287.2 | U93: 0.0029 | V93: 9.98 | W93: 1.1049 | X93: 3794.82 | Y93: 7229.37
A94: P8193 | B94: Historiador pleno | C94: mês | D94: 4579.4 | E94: 0.8014 | F94: 3669.93 | G94: 0.1535 | H94: 702.89 | I94: 0.0054 | J94: 24.8 | K94: 0 | L94: 0 | M94: 0 | N94: 0 | O94: 0.001 | P94: 4.54 | Q94: 0 | R94: 0 | S94: 0.0627 | T94: 287.2 | U94: 0.0022 | V94: 9.98 | W94: 1.0262 | X94: 4699.34 | Y94: 9278.74
A95: P8194 | B95: Historiador sênior | C95: mês | D95: 7561.4 | E95: 0.8014 | F95: 6059.71 | G95: 0.093 | H95: 702.89 | I95: 0.0033 | J95: 24.8 | K95: 0 | L95: 0 | M95: 0 | N95: 0 | O95: 0.0006 | P95: 4.54 | Q95: 0 | R95: 0 | S95: 0.038 | T95: 287.2 | U95: 0.0013 | V95: 9.98 | W95: 0.9375 | X95: 7089.12 | Y95: 14650.53
A96: P8195 | B96: Paleontólogo júnior | C96: mês | D96: 3129 | E96: 0.8279 | F96: 2590.5 | G96: 0.2246 | H96: 702.89 | I96: 0.0079 | J96: 24.8 | K96: 0 | L96: 0 | M96: 0.01 | N96: 31.29 | O96: 0.0018 | P96: 5.5 | Q96: 0 | R96: 0 | S96: 0.0918 | T96: 287.2 | U96: 0.0032 | V96: 9.98 | W96: 1.1672 | X96: 3652.16 | Y96: 6781.16
A97: P8196 | B97: Paleontólogo pleno | C97: mês | D97: 4172 | E97: 0.8279 | F97: 3454 | G97: 0.1685 | H97: 702.89 | I97: 0.0059 | J97: 24.8 | K97: 0 | L97: 0 | M97: 0 | N97: 0 | O97: 0.0013 | P97: 5.5 | Q97: 0 | R97: 0 | S97: 0.0688 | T97: 287.2 | U97: 0.0024 | V97: 9.98 | W97: 1.0749 | X97: 4484.37 | Y97: 8656.37
A98: P8197 | B98: Paleontólogo sênior | C98: mês | D98: 6159.78 | E98: 0.8279 | F98: 5099.68 | G98: 0.1141 | H98: 702.89 | I98: 0.004 | J98: 24.8 | K98: 0 | L98: 0 | M98: 0 | N98: 0 | O98: 0.0009 | P98: 5.5 | Q98: 0 | R98: 0 | S98: 0.0466 | T98: 287.2 | U98: 0.0016 | V98: 9.98 | W98: 0.9952 | X98: 6130.05 | Y98: 12289.83
A99: P8198 | B99: Sociólogo júnior | C99: mês | D99: 3607.77 | E99: 0.8014 | F99: 2891.26 | G99: 0.1948 | H99: 702.89 | I99: 0.0069 | J99: 24.8 | K99: 0 | L99: 0 | M99: 0.0007 | N99: 2.57 | O99: 0.0013 | P99: 4.54 | Q99: 0 | R99: 0 | S99: 0.0796 | T99: 287.2 | U99: 0.0028 | V99: 9.98 | W99: 1.0874 | X99: 3923.24 | Y99: 7531.01
A100: P8199 | B100: Sociólogo pleno | C100: mês | D100: 4810.36 | E100: 0.8014 | F100: 3855.02 | G100: 0.1461 | H100: 702.89 | I100: 0.0052 | J100: 24.8 | K100: 0 | L100: 0 | M100: 0 | N100: 0 | O100: 0.0009 | P100: 4.54 | Q100: 0 | R100: 0 | S100: 0.0597 | T100: 287.2 | U100: 0.0021 | V100: 9.98 | W100: 1.0154 | X100: 4884.43 | Y100: 9694.79
A101: P8200 | B101: Sociólogo sênior | C101: mês | D101: 7731.83 | E101: 0.8014 | F101: 6196.29 | G101: 0.0909 | H101: 702.89 | I101: 0.0032 | J101: 24.8 | K101: 0 | L101: 0 | M101: 0 | N101: 0 | O101: 0.0006 | P101: 4.54 | Q101: 0 | R101: 0 | S101: 0.0371 | T101: 287.2 | U101: 0.0013 | V101: 9.98 | W101: 0.9345 | X101: 7225.7 | Y101: 14957.54

Sheet TC-DNIT
A1: 2023-07-01
A2: Tabela 1 - Custos de veículos
A3: ="Tabela de Preços de Consultoria - mês de referência: "&TEXT(A1,"MMMM")&" de "&TEXT(A1,"AAAA") -> Tabela de Preços de Consultoria - mês de referência: julho de 2023
A4: Item | B4: Código | C4: Tipo | D4: Unidade | E4: Custo unitário (R$ / un) | G4: S
E5: Produtivo | F5: Improdutivo
A6: Veículos | B6: E8889 | C6: Veículo leve - 53 kW (sem motorista) | D6: hora | E6: 32.84 | F6: 6.47
B7: E8891 | C7: Veículo leve picape 4x4 - 147 kW (sem motorista) | D7: hora | E7: 80.19 | F7: 28.61
B8: E8887 | C8: Van furgão - 93 kW (com motorista) | D8: hora | E8: 74.09 | F8: 43.18
A9: Fonte: FGV IBRE
A11: Tabela 2 - Custos de imóveis, mobiliário, cestas de instalações e custos diversos
A12: ="Tabela de Preços de Consultoria - mês de referência: "&TEXT(A1,"MMMM")&" de "&TEXT(A1,"AAAA") -> Tabela de Preços de Consultoria - mês de referência: julho de 2023
A13: Item | B13: Código | C13: Tipo | E13: Unidade | F13: Custo unitário (R$ / un)
A14: Imóveis | B14: B8951 | C14: Imóvel Comercial (2,60% do CMCC - SINAPI) | E14: l | F14: 47.3
B15: B8952 | C15: Residencial (1,70% do CMCC - SINAPI) | E15: m² x mês | F15: 30.93
A16: Mobiliário | B16: B8953 | C16: Mobiliário Escritório | E16: ocupante x mês | F16: 502.59
B17: B8954 | C17: Residência | E17: ocupante x mês | F17: 43.87
A18: Cesta das Instalações | B18: B8955 | C18: Laboratório de asfalto | E18: mês | F18: 5144.99
B19: B8956 | C19: Laboratório de concreto | E19: mês | F19: 4285.23
B20: B8957 | C20: Laboratório de solos | E20: mês | F20: 4235.59
B21: B8958 | C21: Topografia | E21: mês | F21: 3163.12
A22: Custos Diversos | B22: B8959 | C22: Custos Diversos Escritório | E22: ocupante x mês | F22: 132.92
B23: B8960 | C23: Residência | E23: ocupante x mês | F23: 212.02
A24: Fonte: FGV IBRE
